Workbook

Sheet NOTES (hidden)
A2: The model has actual and test data to illustrate the workings of the model. | D2: ='Model update'!B5 -> 2020
A4: Issue | B4: Location | C4: Item | D4: Comment
A6: 1 | B6: 'Model update'!C25 | C6: CPI | D6: ="Updated June "&D2-1&" CPI for "&D2 -> Updated June 2019 CPI for 2020 | E6: NOTE: This worksheet is programmed to update for each year - use as checklist and note any placeholders or changes
E7: NOTE: Worksheet names in this file are programmed to update each year once each worksheet is accessed and a cell is selected
A8: =A6+1 -> 2 | B8: 'Model update'!B34 | C8: ="Xt for "&D2 -> Xt for 2020 | D8: ="Updated for "&D2&" annual update " -> Updated for 2020 annual update
A10: =A8+1 -> 3 | B10: 'Model update'!B44 | C10: ="Pass Through Amount for "&D2 -> Pass Through Amount for 2020 | D10: NIL for 2020
A12: =A10+1 -> 4 | B12: 'Model update'!H79:H83 | C12: Real Pre-tax WACC (rptw) | D12: ="Updated for "&$D$2&" annual update" -> Updated for 2020 annual update
A14: =A12+1 -> 5 | B14: ="Prop"&D2&"DistTar!E8:E96" -> Prop2020DistTar!E8:E96 | C14: =D2-1&" tariffs" -> 2019 tariffs | D14: ="Updated from "&D2-1&" model" -> Updated from 2019 model
A16: =A14+1 -> 6 | B16: ARS!B6:B12 | C16: =D2-1&" ARS tariffs" -> 2019 ARS tariffs | D16: ="Updated from "&D2-1&" model" -> Updated from 2019 model
A18: =A16+1 -> 7 | B18: The following is test data to illustrate the workings of the model. | D18: Input data required from DNSPs
B19: ="Prop"&D2&"DistTar!D8:D96" -> Prop2020DistTar!D8:D96 | C19: ="Proposed "&D2&" Tariffs" -> Proposed 2020 Tariffs
B20: ="Prop"&D2&"DistTar!F8:F96" -> Prop2020DistTar!F8:F96 | C20: ="Actual "&D2-2&" Volumes" -> Actual 2018 Volumes
B22: ARS!C6:C12 | C22: ="Proposed "&D2&" Ancillary Reference Services Charges" -> Proposed 2020 Ancillary Reference Services Charges

Sheet Model update
A3: Tariff Approval Template for | B3: MultiNet
A5: Calendar year commencing | B5: 2020
A7: t | B7: =B5 -> 2020
A8: t-1 | B8: =B7-1 -> 2019
A9: t-2 | B9: 2018
A10: t-3 | B10: 2017
A13: Please fill in yellow highlighted cells where appropriate
A15: CPI
A17: CPI Index June 2016 | B17: 108.6
A18: CPI Index June 2017 | B18: 110.7
A19: CPI Index June 2018 | B19: 113
A20: CPI Index June 2019 | B20: 114.8
A21: CPI Index June 2020
A22: CPI Index June 2021
A25: ="CPI Index June " &$B$10 -> CPI Index June 2017 | B25: =VLOOKUP(A25,A$17:D$22,2,FALSE) -> 110.7
A26: ="CPI Index June " &$B$9 -> CPI Index June 2018 | B26: =VLOOKUP(A26,A$17:D$22,2,FALSE) -> 113
A27: ="CPI Index June " &$B$8 -> CPI Index June 2019 | B27: =VLOOKUP(A27,A$17:D$22,2,FALSE) -> 114.8
A29: ="CPI " &$B$8 -> CPI 2019 | B29: =B26/B25-1 -> 0.02077687444
A30: ="CPI " &$B$5 -> CPI 2020 | B30: =B27/B26-1 -> 0.01592920354
A33: ="Xt for "&B$5 -> Xt for 2020
A34: 2019 | B34: -0.01775734485
A35: 2020 | B35: -0.01173652192
A36: 2021 | B36: -0.018
A37: 2022 | B37: -0.018
A40: ="Xt for "&B$5 -> Xt for 2020 | B40: =VLOOKUP(B5,A34:B38,2,FALSE) -> -0.01173652192
A43: Pass Through Amounts : PT (t)
A44: 2019 | B44: 0
A45: 2020 | B45: 0
A46: 2021 | B46: 0
A47: 2022 | B47: 0
A50: ="Pass Through Amount for "&B$5 -> Pass Through Amount for 2020 | B50: =VLOOKUP(B5,A44:B48,2,FALSE) -> 0
A51: The Pass Through Amount is to include an amount that reflects the time value of money between incurring the costs and recovering the costs
A52: and excludes any amounts already passed through in reference tariffs.
A55: Pre-tax WACC for distribution tariffs
A58: Pretax WACCD | B58: 0.03903238881

Sheet Prop2020DistTar
B1: ="Tariff Approval - "&'Model update'!B3 -> Tariff Approval - MultiNet | C1: ="Prop"&'Model update'!B5&"DistTar" -> Prop2020DistTar
B3: ="PROPOSED "&'Model update'!$B$5&" DISTRIBUTION TARIFFS" -> PROPOSED 2020 DISTRIBUTION TARIFFS
B5: Proposed tariff name | C5: Existing name | D5: Prop 2020 Tariff | E5: ="Exist "&'Model update'!$B$8&" Tariff" -> Exist 2019 Tariff | F5: ="Actual "&'Model update'!$B$9&" Volumes" -> Actual 2018 Volumes | G5: Prop Tar Revenue | H5: Exist Tar Revenue
B6: Tariff V - Multinet Residential | C6: Tariff V - Multinet Residential
B7: 1 January - 31 December | C7: 1 January - 31 December
B8: Fixed Charge | C8: Fixed Charge | D8: 0.183 | E8: 0.1801 | F8: 677911 | G8: =D8*$F8*365 -> 45281065.25 | H8: =E8*$F8*365 -> 44563496.45
B9: Peak 0 - 0.05 | C9: Peak 0 - 0.05 | D9: 8.750296539 | E9: 8.368040225 | F9: 3644226.866 | G9: =D9*$F9 -> 31888065.73 | H9: 30495037
B10: Peak 0.05 - 0.1 | C10: Peak 0.05 - 0.1 | D10: 5.8383 | E10: 5.7468 | F10: 3061316.87 | G10: 17872886.28 | H10: 17592775.79
B11: Peak 0.1 -0.15 | C11: Peak 0.1 -0.15 | D11: 3.0185 | E11: 2.9712 | F11: 2663703.461 | G11: 8040388.898 | H11: 7914395.724
B12: Peak 0.15 - 0.25 | C12: Peak 0.15 - 0.25 | D12: 1.5276 | E12: 1.5036 | F12: 4323577.418 | G12: 6604696.864 | H12: 6500931.006
B13: Peak >0.25 | C13: Peak >0.25 | D13: 1.1329 | E13: 1.1151 | F13: 8511966.02 | G13: 9643206.304 | H13: 9491693.309
B14: May Shoulder 0 - 0.05 | C14: May Shoulder 0 - 0.05 | D14: 8.351549891 | E14: 7.986709426 | F14: 909391.3872 | G14: 7594827.54 | H14: 7263044.764
B15: May Shoulder 0.05 - 0.1 | C15: May Shoulder 0.05 - 0.1 | D15: 5.5464 | E15: 5.4594 | F15: 720256.5218 | G15: 3994830.772 | H15: 3932168.455
B16: May Shoulder 0.1 -0.15 | C16: May Shoulder 0.1 -0.15 | D16: 2.8686 | E16: 2.8236 | F16: 580423.2683 | G16: 1665002.187 | H16: 1638883.14
B17: May Shoulder 0.15 - 0.25 | C17: May Shoulder 0.15 - 0.25 | D17: 1.4513 | E17: 1.4285 | F17: 832054.5349 | G17: 1207560.746 | H17: 1188589.903
B18: May Shoulder >0.25 | C18: May Shoulder >0.25 | D18: 1.0913 | E18: 1.0742 | F18: 1271057.51 | G18: 1387105.061 | H18: 1365369.977
B19: Oct Shoulder 0 - 0.05 | C19: Oct Shoulder 0 - 0.05 | D19: 8.351549891 | E19: 7.986709426 | F19: 879745.9885 | G19: 7347242.514 | H19: 7026275.578
B20: Oct Shoulder 0.05 - 0.1 | C20: Oct Shoulder 0.05 - 0.1 | D20: 5.5464 | E20: 5.4594 | F20: 597219.3976 | G20: 3312417.667 | H20: 3260459.579
B21: Oct Shoulder 0.1 -0.15 | C21: Oct Shoulder 0.1 -0.15 | D21: 2.8686 | E21: 2.8236 | F21: 387562.8874 | G21: 1111762.899 | H21: 1094322.569
B22: Oct Shoulder 0.15 - 0.25 | C22: Oct Shoulder 0.15 - 0.25 | D22: 1.4513 | E22: 1.4285 | F22: 417870.9584 | G22: 606456.1219 | H22: 596928.664
B23: Oct Shoulder >0.25 | C23: Oct Shoulder >0.25 | D23: 1.0913 | E23: 1.0742 | F23: 483169.1906 | G23: 527282.5377 | H23: 519020.3445
B24: Off Peak 0 - 0.05 | C24: Off Peak 0 - 0.05 | D24: 7.472536888 | E24: 7.146107788 | F24: 4421093.801 | G24: 33036786.51 | H24: 31593612.84
B25: Off Peak 0.05 - 0.1 | C25: Off Peak 0.05 - 0.1 | D25: 4.9627 | E25: 4.8849 | F25: 1703421.507 | G25: 8453569.911 | H25: 8321043.718
B26: Off Peak 0.1 -0.15 | C26: Off Peak 0.1 -0.15 | D26: 2.5666 | E26: 2.5264 | F26: 742019.8457 | G26: 1904468.136 | H26: 1874638.938
B27: Off Peak 0.15 - 0.25 | C27: Off Peak 0.15 - 0.25 | D27: 1.2985 | E27: 1.2781 | F27: 672243.8988 | G27: 872908.7026 | H27: 859194.9271
B28: Off Peak >0.25 | C28: Off Peak >0.25 | D28: 0.9766 | E28: 0.9613 | F28: 1113875.999 | G28: =D28*$F28 -> 1087811.301 | H28: =E28*$F28 -> 1070768.998
B29: Tariff V - Multinet Non-Residential | C29: Tariff V - Multinet Non-Residential
B30: 1 January - 31 December | C30: 1 January - 31 December
B31: Fixed Charge | C31: Fixed Charge | D31: 0.3018 | E31: 0.2971 | F31: 15893 | G31: =D31*$F31*365 -> 1750725.201 | H31: =E31*$F31*365 -> 1723460.759
B32: Peak 0 - 0.25 | C32: Peak 0 - 0.25 | D32: 3.99611251 | E32: 3.821572773 | F32: 307852.0832 | G32: =D32*$F32 -> 1230211.561 | H32: 1176479.139
B33: Peak 0.25 - 1 | C33: Peak 0.25 - 1 | D33: 2.3486 | E33: 2.3118 | F33: 503329.6734 | G33: 1182120.071 | H33: 1163597.539
B34: Peak 1 - 1.5 | C34: Peak 1 - 1.5 | D34: 1.4092 | E34: 1.3871 | F34: 195782.1273 | G34: 275896.1737 | H34: 271569.3887
B35: Peak 1.5 - 5 | C35: Peak 1.5 - 5 | D35: 0.7842 | E35: 0.7719 | F35: 650338.5962 | G35: 509995.5271 | H35: 501996.3624
B36: Peak >5 | C36: Peak >5 | D36: 0.2617 | E36: 0.2576 | F36: 795170.6966 | G36: 208096.1713 | H36: 204835.9714
B37: May Shoulder 0 - 0.25 | C37: May Shoulder 0 - 0.25 | D37: 3.66735753 | E37: 3.507092558 | F37: 74339.00441 | G37: 272627.7076 | H37: 260713.7692
B38: May Shoulder 0.25 - 1 | C38: May Shoulder 0.25 - 1 | D38: 2.1139 | E38: 2.0808 | F38: 116401.105 | G38: 246060.2959 | H38: 242207.4193
B39: May Shoulder 1 - 1.5 | C39: May Shoulder 1 - 1.5 | D39: 1.3387 | E39: 1.3177 | F39: 44612.17384 | G39: 59722.31712 | H39: 58785.46147
B40: May Shoulder 1.5 - 5 | C40: May Shoulder 1.5 - 5 | D40: 0.7641 | E40: 0.7521 | F40: 145114.8234 | G40: 110882.2366 | H40: 109140.8587
B41: May Shoulder >5 | C41: May Shoulder >5 | D41: 0.2353 | E41: 0.2316 | F41: 151403.5386 | G41: 35625.25264 | H41: 35065.05955
B42: Oct Shoulder 0 - 0.25 | C42: Oct Shoulder 0 - 0.25 | D42: 3.66735753 | E42: 3.507092558 | F42: 68871.14153 | G42: =D42*$F42 -> 252575.0995 | H42: 241537.4679
B43: Oct Shoulder 0.25 - 1 | C43: Oct Shoulder 0.25 - 1 | D43: 2.1139 | E43: 2.0808 | F43: 104777.2212 | G43: 221488.568 | H43: 218020.4419
B44: Oct Shoulder 1 - 1.5 | C44: Oct Shoulder 1 - 1.5 | D44: 1.3387 | E44: 1.3177 | F44: 40641.85905 | G44: 54407.25671 | H44: 53553.77767
B45: Oct Shoulder 1.5 - 5 | C45: Oct Shoulder 1.5 - 5 | D45: 0.7641 | E45: 0.7521 | F45: 127399.465 | G45: 97345.9312 | H45: 95817.13762
B46: Oct Shoulder >5 | C46: Oct Shoulder >5 | D46: 0.2353 | E46: 0.2316 | F46: 119291.8866 | G46: 28069.38091 | H46: 27628.00093
B47: Off Peak 0 - 0.25 | C47: Off Peak 0 - 0.25 | D47: 3.326045221 | E47: 3.180685948 | F47: 341453.5896 | G47: 1135690.08 | H47: 1086056.635
B48: Off Peak 0.25 - 1 | C48: Off Peak 0.25 - 1 | D48: 2.0411 | E48: 2.0091 | F48: 511890.749 | G48: 1044820.208 | H48: 1028439.704
B49: Off Peak 1 - 1.5 | C49: Off Peak 1 - 1.5 | D49: 1.2218 | E49: 1.2026 | F49: 189883.5266 | G49: 231999.6928 | H49: 228353.929
B50: Off Peak 1.5 - 5 | C50: Off Peak 1.5 - 5 | D50: 0.7404 | E50: 0.7288 | F50: 547490.3545 | G50: 405361.8585 | H50: 399010.9704
B51: Off Peak >5 | C51: Off Peak >5 | D51: 0.2091 | E51: 0.2058 | F51: 478141.9969 | G51: =D51*$F51 -> 99979.49155 | H51: =E51*$F51 -> 98401.62296
B52: Tariff V - Yarra Valley Residential | C52: Tariff V - Yarra Valley Residential
B53: 1 January - 31 December | C53: 1 January - 31 December
B54: Fixed Charge | C54: Fixed Charge | D54: 0.183 | E54: 0.1801 | F54: 5449 | G54: =D54*$F54*365 -> 363965.955 | H54: =E54*$F54*365 -> 358198.1885
B55: Peak 0 - 0.05 | C55: Peak 0 - 0.05 | D55: 10.42783213 | E55: 9.972245018 | F55: 29024.73121 | G55: =D55*$F55 -> 302665.0246 | H55: 289441.7312
B56: Peak 0.05 - 0.1 | C56: Peak 0.05 - 0.1 | D56: 7.8394 | E56: 7.7165 | F56: 24230.22273 | G56: 189950.4081 | H56: 186972.5137
B57: Peak 0.1 -0.15 | C57: Peak 0.1 -0.15 | D57: 5.6037 | E57: 5.5158 | F57: 21044.12403 | G57: 117924.9578 | H57: 116075.1793
B58: Peak 0.15 - 0.25 | C58: Peak 0.15 - 0.25 | D58: 4.4204 | E58: 4.3511 | F58: 33858.74666 | G58: 149669.2037 | H58: 147322.7926
B59: Peak >0.25 | C59: Peak >0.25 | D59: 4.1198 | E59: 4.0552 | F59: 59278.5723 | G59: 244215.8622 | H59: 240386.4664
B60: May Shoulder 0 - 0.05 | C60: May Shoulder 0 - 0.05 | D60: 10.07910894 | E60: 9.638724418 | F60: 7162.36725 | G60: 72190.27975 | H60: 69036.0841
B61: May Shoulder 0.05 - 0.1 | C61: May Shoulder 0.05 - 0.1 | D61: 7.6078 | E61: 7.4885 | F61: 5595.99381 | G61: 42573.20171 | H61: 41905.59965
B62: May Shoulder 0.1 -0.15 | C62: May Shoulder 0.1 -0.15 | D62: 5.4839 | E62: 5.3979 | F62: 4560.00961 | G62: 25006.6367 | H62: 24614.47587
B63: May Shoulder 0.15 - 0.25 | C63: May Shoulder 0.15 - 0.25 | D63: 4.3597 | E63: 4.2913 | F63: 7028.43581 | G63: 30641.8716 | H63: 30161.12659
B64: May Shoulder >0.25 | C64: May Shoulder >0.25 | D64: 4.0742 | E64: 4.0103 | F64: 12087.90897 | G64: 49248.55873 | H64: 48476.14134
B65: Oct Shoulder 0 - 0.05 | C65: Oct Shoulder 0 - 0.05 | D65: 10.07910894 | E65: 9.638724418 | F65: 7056.94206 | G65: 71127.68778 | H65: 68019.91975
B66: Oct Shoulder 0.05 - 0.1 | C66: Oct Shoulder 0.05 - 0.1 | D66: 7.6078 | E66: 7.4885 | F66: 4924.06875 | G66: 37461.33024 | H66: 36873.88883
B67: Oct Shoulder 0.1 -0.15 | C67: Oct Shoulder 0.1 -0.15 | D67: 5.4839 | E67: 5.3979 | F67: 3190.42221 | G67: 17495.95636 | H67: 17221.58005
B68: Oct Shoulder 0.15 - 0.25 | C68: Oct Shoulder 0.15 - 0.25 | D68: 4.3597 | E68: 4.2913 | F68: 2922.93423 | G68: 12743.11636 | H68: 12543.18766
B69: Oct Shoulder >0.25 | C69: Oct Shoulder >0.25 | D69: 4.0742 | E69: 4.0103 | F69: 3153.98707 | G69: 12849.97412 | H69: 12648.43435
B70: Off Peak 0 - 0.05 | C70: Off Peak 0 - 0.05 | D70: 9.381868411 | E70: 8.971997071 | F70: 30252.3261 | G70: 283823.3426 | H70: 271423.7811
B71: Off Peak 0.05 - 0.1 | C71: Off Peak 0.05 - 0.1 | D71: 7.1447 | E71: 7.0327 | F71: 11025.2406 | G71: 78772.03651 | H71: 77537.20957
B72: Off Peak 0.1 -0.15 | C72: Off Peak 0.1 -0.15 | D72: 5.2443 | E72: 5.1621 | F72: 4742.13758 | G72: 24869.19211 | H72: 24479.3884
B73: Off Peak 0.15 - 0.25 | C73: Off Peak 0.15 - 0.25 | D73: 4.2385 | E73: 4.172 | F73: 3472.25867 | G73: 14717.16837 | H73: 14486.26317
B74: Off Peak >0.25 | C74: Off Peak >0.25 | D74: 3.9831 | E74: 3.9206 | F74: 7690.4559 | G74: =D74*$F74 -> 30631.8549 | H74: =E74*$F74 -> 30151.2014
B75: Tariff V - Yarra Valley Non-Residential | C75: Tariff V - Yarra Valley Non-Residential
B76: 1 January - 31 December | C76: 1 January - 31 December
B77: Fixed Charge | C77: Fixed Charge | D77: 0.3004 | E77: 0.2957 | F77: 70 | G77: =D77*$F77*365 -> 7675.22 | H77: =E77*$F77*365 -> 7555.135
B78: Peak 0 - 0.25 | C78: Peak 0 - 0.25 | D78: 6.707260344 | E78: 6.414203736 | F78: 1542.69348 | G78: =D78*$F78 -> 10347.2468 | H78: 9895.150283
B79: Peak 0.25 - 1 | C79: Peak 0.25 - 1 | D79: 5.1199 | E79: 5.0396 | F79: 2565.56781 | G79: 13135.45063 | H79: 12929.43554
B80: Peak 1 - 1.5 | C80: Peak 1 - 1.5 | D80: 4.3555 | E80: 4.2872 | F80: 812.33832 | G80: 3538.139553 | H80: 3482.656846
B81: Peak 1.5 - 5 | C81: Peak 1.5 - 5 | D81: 3.8468 | E81: 3.7865 | F81: 2172.70206 | G81: 8357.950284 | H81: 8226.93635
B82: Peak >5 | C82: Peak >5 | D82: 3.4214 | E82: 3.3678 | F82: 8217.71339 | G82: 28116.08459 | H82: 27675.61515
B83: May Shoulder 0 - 0.25 | C83: May Shoulder 0 - 0.25 | D83: 6.439542215 | E83: 6.158204706 | F83: 357.93823 | G83: 2304.958343 | H83: 2204.256892
B84: May Shoulder 0.25 - 1 | C84: May Shoulder 0.25 - 1 | D84: 4.9288 | E84: 4.8515 | F84: 578.5833 | G84: 2851.721369 | H84: 2806.99688
B85: May Shoulder 1 - 1.5 | C85: May Shoulder 1 - 1.5 | D85: 4.298 | E85: 4.2306 | F85: 175.59529 | G85: 754.7085564 | H85: 742.8734339
B86: May Shoulder 1.5 - 5 | C86: May Shoulder 1.5 - 5 | D86: 3.8304 | E86: 3.7703 | F86: 427.66824 | G86: 1638.140426 | H86: 1612.437565
B87: May Shoulder >5 | C87: May Shoulder >5 | D87: 3.4001 | E87: 3.3468 | F87: 2089.86794 | G87: 7105.759983 | H87: 6994.370022
B88: Oct Shoulder 0 - 0.25 | C88: Oct Shoulder 0 - 0.25 | D88: 6.439542215 | E88: 6.158204706 | F88: 376.4687 | G88: 2424.286086 | H88: 2318.37132
B89: Oct Shoulder 0.25 - 1 | C89: Oct Shoulder 0.25 - 1 | D89: 4.9288 | E89: 4.8515 | F89: 512.62019 | G89: 2526.602392 | H89: 2486.976852
B90: Oct Shoulder 1 - 1.5 | C90: Oct Shoulder 1 - 1.5 | D90: 4.298 | E90: 4.2306 | F90: 126.52008 | G90: 543.7833038 | H90: 535.2558504
B91: Oct Shoulder 1.5 - 5 | C91: Oct Shoulder 1.5 - 5 | D91: 3.8304 | E91: 3.7703 | F91: 390.21409 | G91: 1494.67605 | H91: 1471.224184
B92: Oct Shoulder >5 | C92: Oct Shoulder >5 | D92: 3.4001 | E92: 3.3468 | F92: 599.17699 | G92: 2037.261684 | H92: 2005.32555
B93: Off Peak 0 - 0.25 | C93: Off Peak 0 - 0.25 | D93: 6.161531194 | E93: 5.89237163 | F93: 1664.4568 | G93: 10255.60249 | H93: 9807.598028
B94: Off Peak 0.25 - 1 | C94: Off Peak 0.25 - 1 | D94: 4.8698 | E94: 4.7934 | F94: 2241.63579 | G94: 10916.31797 | H94: 10745.057
B95: Off Peak 1 - 1.5 | C95: Off Peak 1 - 1.5 | D95: 4.2028 | E95: 4.1369 | F95: 578.90176 | G95: 2433.008317 | H95: 2394.858691
B96: Off Peak 1.5 - 5 | C96: Off Peak 1.5 - 5 | D96: 3.8112 | E96: 3.7514 | F96: 1896.40126 | G96: 7227.564482 | H96: 7114.159687
B97: Off Peak >5 | C97: Off Peak >5 | D97: 3.3787 | E97: 3.3257 | F97: 1265.9805 | G97: 4277.368315 | H97: 4210.271349
B98: Tariff V - South Gippsland Residential | C98: Tariff V - South Gippsland Residential
B99: 1 January - 31 December | C99: 1 January - 31 December
B100: Fixed Charge | C100: Fixed Charge | D100: 0.183 | E100: 0.1801 | F100: 5324 | G100: =D100*$F100*365 -> 355616.58 | H100: =E100*$F100*365 -> 349981.126
B101: Peak 0 - 0.05 | C101: Peak 0 - 0.05 | D101: 11.34884013 | E101: 10.85301978 | F101: 24596.84764 | G101: =D101*$F101 -> 279145.6916 | H101: 266950.0739
B102: Peak 0.05 - 0.1 | C102: Peak 0.05 - 0.1 | D102: 8.5804 | E102: 8.4459 | F102: 18168.29062 | G102: 155891.2008 | H102: 153447.5657
B103: Peak 0.1 -0.15 | C103: Peak 0.1 -0.15 | D103: 6.2062 | E103: 6.1089 | F103: 14198.81802 | G103: 88120.7044 | H103: 86739.1594
B104: Peak 0.15 - 0.25 | C104: Peak 0.15 - 0.25 | D104: 4.9497 | E104: 4.8721 | F104: 19036.52985 | G104: 94225.1118 | H104: 92747.87708
B105: Peak >0.25 | C105: Peak >0.25 | D105: 4.6306 | E105: 4.558 | F105: 20412.19059 | G105: 94520.68975 | H105: 93038.76471
B106: May Shoulder 0 - 0.05 | C106: May Shoulder 0 - 0.05 | D106: 10.97839894 | E106: 10.49878491 | F106: 5893.45704 | G106: 64700.7225 | H106: 61874.13785
B107: May Shoulder 0.05 - 0.1 | C107: May Shoulder 0.05 - 0.1 | D107: 8.3346 | E107: 8.2039 | F107: 3780.76755 | G107: 31511.18522 | H107: 31017.0389
B108: May Shoulder 0.1 -0.15 | C108: May Shoulder 0.1 -0.15 | D108: 6.079 | E108: 5.9837 | F108: 2390.27203 | G108: 14530.46367 | H108: 14302.67075
B109: May Shoulder 0.15 - 0.25 | C109: May Shoulder 0.15 - 0.25 | D109: 4.8853 | E109: 4.8087 | F109: 2237.18867 | G109: 10929.33781 | H109: 10757.96916
B110: May Shoulder >0.25 | C110: May Shoulder >0.25 | D110: 4.582 | E110: 4.5102 | F110: 1732.63374 | G110: 7938.927797 | H110: 7814.524694
B111: Oct Shoulder 0 - 0.05 | C111: Oct Shoulder 0 - 0.05 | D111: 10.97839894 | E111: 10.49878491 | F111: 5413.14387 | G111: 59427.65291 | H111: 56831.43319
B112: Oct Shoulder 0.05 - 0.1 | C112: Oct Shoulder 0.05 - 0.1 | D112: 8.3346 | E112: 8.2039 | F112: 2609.83487 | G112: 21751.92971 | H112: 21410.82429
B113: Oct Shoulder 0.1 -0.15 | C113: Oct Shoulder 0.1 -0.15 | D113: 6.079 | E113: 5.9837 | F113: 1367.78326 | G113: 8314.754438 | H113: 8184.404693
B114: Oct Shoulder 0.15 - 0.25 | C114: Oct Shoulder 0.15 - 0.25 | D114: 4.8853 | E114: 4.8087 | F114: 1191.74737 | G114: 5822.043427 | H114: 5730.755578
B115: Oct Shoulder >0.25 | C115: Oct Shoulder >0.25 | D115: 4.582 | E115: 4.5102 | F115: 1400.41932 | G115: 6416.721324 | H115: 6316.171217
B116: Off Peak 0 - 0.05 | C116: Off Peak 0 - 0.05 | D116: 10.23813412 | E116: 9.790838268 | F116: 21344.00457 | G116: 218522.7815 | H116: 208975.6967
B117: Off Peak 0.05 - 0.1 | C117: Off Peak 0.05 - 0.1 | D117: 7.8428 | E117: 7.7198 | F117: 5784.37949 | G117: 45365.73146 | H117: 44654.25279
B118: Off Peak 0.1 -0.15 | C118: Off Peak 0.1 -0.15 | D118: 5.8247 | E118: 5.7334 | F118: 2586.18427 | G118: 15063.74752 | H118: 14827.62889
B119: Off Peak 0.15 - 0.25 | C119: Off Peak 0.15 - 0.25 | D119: 4.7565 | E119: 4.6819 | F119: 2098.63421 | G119: 9982.15362 | H119: 9825.595508
B120: Off Peak >0.25 | C120: Off Peak >0.25 | D120: 4.4852 | E120: 4.4149 | F120: 5478.00194 | G120: =D120*$F120 -> 24569.9343 | H120: =E120*$F120 -> 24184.83076
B121: Tariff V - South Gippsland Non-Residential | C121: Tariff V - South Gippsland Non-Residential
B122: 1 January - 31 December | C122: 1 January - 31 December
B123: Fixed Charge | C123: Fixed Charge | D123: 0.3018 | E123: 0.2971 | F123: 112 | G123: =D123*$F123*365 -> 12337.584 | H123: =E123*$F123*365 -> 12145.448
B124: Peak 0 - 0.25 | C124: Peak 0 - 0.25 | D124: 7.397810489 | E124: 7.074654033 | F124: 2428.16118 | G124: =D124*$F124 -> 17963.07625 | H124: 17178.40029
B125: Peak 0.25 - 1 | C125: Peak 0.25 - 1 | D125: 5.6927 | E125: 5.6034 | F125: 4550.35041 | G125: 25903.77978 | H125: 25497.43349
B126: Peak 1 - 1.5 | C126: Peak 1 - 1.5 | D126: 4.8807 | E126: 4.8042 | F126: 2154.0236 | G126: 10513.14298 | H126: 10348.36018
B127: Peak 1.5 - 5 | C127: Peak 1.5 - 5 | D127: 4.3408 | E127: 4.2727 | F127: 8849.64413 | G127: 38414.53524 | H127: 37811.87447
B128: Peak >5 | C128: Peak >5 | D128: 3.889 | E128: 3.828 | F128: 13120.50102 | G128: 51025.62847 | H128: 50225.2779
B129: May Shoulder 0 - 0.25 | C129: May Shoulder 0 - 0.25 | D129: 7.113623733 | E129: 6.80285776 | F129: 572.76758 | G129: 4074.45305 | H129: 3896.456376
B130: May Shoulder 0.25 - 1 | C130: May Shoulder 0.25 - 1 | D130: 5.4896 | E130: 5.4035 | F130: 1090.40864 | G130: 5985.90727 | H130: 5892.023086
B131: May Shoulder 1 - 1.5 | C131: May Shoulder 1 - 1.5 | D131: 4.8199 | E131: 4.7443 | F131: 513.6815 | G131: 2475.893462 | H131: 2437.05914
B132: May Shoulder 1.5 - 5 | C132: May Shoulder 1.5 - 5 | D132: 4.3232 | E132: 4.2554 | F132: 2056.15032 | G132: 8889.149063 | H132: 8749.742072
B133: May Shoulder >5 | C133: May Shoulder >5 | D133: 3.8662 | E133: 3.8056 | F133: 2889.35777 | G133: 11170.83501 | H133: 10995.73993
B134: Oct Shoulder 0 - 0.25 | C134: Oct Shoulder 0 - 0.25 | D134: 7.113623733 | E134: 6.80285776 | F134: 554.19888 | G134: 3942.362305 | H134: 3770.136151
B135: Oct Shoulder 0.25 - 1 | C135: Oct Shoulder 0.25 - 1 | D135: 5.4896 | E135: 5.4035 | F135: 1052.26872 | G135: 5776.534365 | H135: 5685.934029
B136: Oct Shoulder 1 - 1.5 | C136: Oct Shoulder 1 - 1.5 | D136: 4.8199 | E136: 4.7443 | F136: 482.43288 | G136: 2325.278238 | H136: 2288.806313
B137: Oct Shoulder 1.5 - 5 | C137: Oct Shoulder 1.5 - 5 | D137: 4.3232 | E137: 4.2554 | F137: 1964.6681 | G137: 8493.65313 | H137: 8360.448633
B138: Oct Shoulder >5 | C138: Oct Shoulder >5 | D138: 3.8662 | E138: 3.8056 | F138: 2202.79628 | G138: 8516.450978 | H138: 8382.961523
B139: Off Peak 0 - 0.25 | C139: Off Peak 0 - 0.25 | D139: 6.81852651 | E139: 6.520599737 | F139: 2968.22252 | G139: 20238.90394 | H139: 19354.59098
B140: Off Peak 0.25 - 1 | C140: Off Peak 0.25 - 1 | D140: 5.4269 | E140: 5.3418 | F140: 5770.23725 | G140: 31314.50053 | H140: 30823.45334
B141: Off Peak 1 - 1.5 | C141: Off Peak 1 - 1.5 | D141: 4.7186 | E141: 4.6446 | F141: 2611.91204 | G141: 12324.56815 | H141: 12131.28666
B142: Off Peak 1.5 - 5 | C142: Off Peak 1.5 - 5 | D142: 4.3028 | E142: 4.2353 | F142: 8567.82512 | G142: 36865.63793 | H142: 36287.30973
B143: Off Peak >5 | C143: Off Peak >5 | D143: 3.8436 | E143: 3.7833 | F143: 8087.84324 | G143: 31086.43428 | H143: 30598.73733
B145: Tariff D - Multinet | C145: Tariff D - Multinet
B146: 0 - 50 | C146: 0 - 50 | D146: 595.3247 | E146: 579.1926 | F146: 3277.68 | G146: =D146*$F146 -> 1951283.863 | H146: =E146*$F146 -> 1898408.001
B147: > 50 | C147: > 50 | D147: 101.2894 | E147: 98.5447 | F147: 461.1 | G147: =D147*$F147 -> 46704.54234 | H147: =E147*$F147 -> 45438.96117
B149: New Tariff L- Multinet Non-Residential | C149: New Tariff L- Multinet Non-Residential
B150: 1 January - 31 December | C150: 1 January - 31 December
B151: Fixed Charge | C151: Fixed Charge | D151: 0 | E151: 0 | F151: 13 | G151: =D151*$F151*365 -> 0 | H151: =E151*$F151*365 -> 0
B152: Peak < 5 | C152: Peak < 5 | D152: 0.6377 | E152: 0.6204 | F152: 6384.22 | G152: =D152*$F152 -> 4071.217094 | H152: 3960.770088
B153: Peak > 5 | C153: Peak > 5 | D153: 0.1368 | E153: 0.1331 | F153: 29560.4 | G153: 4043.86272 | H153: 3934.48924
B154: May Shoulder < 5 | C154: May Shoulder < 5 | D154: 0.5654 | E154: 0.5501 | F154: 1687.98 | G154: 954.383892 | H154: 928.557798
B155: May Shoulder > 5 | C155: May Shoulder > 5 | D155: 0.1284 | E155: 0.1249 | F155: 5645.96 | G155: 724.941264 | H155: 705.180404
B156: Oct Shoulder < 5 | C156: Oct Shoulder < 5 | D156: 0.5654 | E156: 0.5501 | F156: 1591.26 | G156: 899.698404 | H156: 875.352126
B157: Oct Shoulder > 5 | C157: Oct Shoulder > 5 | D157: 0.1284 | E157: 0.1249 | F157: 4686.55 | G157: 601.75302 | H157: 585.350095
B158: Off Peak < 5 | C158: Off Peak < 5 | D158: 0.4483 | E158: 0.4362 | F158: 8366.93 | G158: 3750.894719 | H158: 3649.654866
B159: Off Peak > 5 | C159: Off Peak > 5 | D159: 0.102 | E159: 0.0992 | F159: 16302.87 | G159: =D159*$F159 -> 1662.89274 | H159: =E159*$F159 -> 1617.244704
B160: New Tariff L - Multinet | C160: New Tariff L - Multinet
B161: Rolling 12 month max [$/GJ (MHQ/d)] | C161: Rolling 12 month max [$/GJ (MHQ/d)] | D161: 0.5929 | E161: 0.5768 | F161: 43.2 | G161: =D161*$F161*365 -> 9348.8472 | H161: =E161*$F161*365 -> 9094.9824
B162: Peak Demand [$/GJ (MHQ/d)] | C162: Peak Demand [$/GJ (MHQ/d)] | D162: 1.7739 | E162: 1.7258 | F162: 34.8 | G162: =D162*$F162*122 -> 7531.26984 | H162: =E162*$F162*122 -> 7327.05648
B163: Tariff D - Multinet South Gippsland | C163: Tariff D - Multinet South Gippsland
B164: 0 - 50 | C164: 0 - 50 | D164: 643.1957 | E164: 625.7664 | F164: 100 | G164: =D164*$F164 -> 64319.57 | H164: =E164*$F164 -> 62576.64
B165: > 50 | C165: > 50 | D165: 109.4277 | E165: 106.4624 | F165: 134.54 | G165: =D165*$F165 -> 14722.40276 | H165: =E165*$F165 -> 14323.4513
B168: Total Revenue | C168: Total Revenue | G168: =SUM(G8:G166) -> 209269174 | H168: =SUM(H8:H166) -> 203598412.9

Sheet 2020TarContForm
B1: ="Tariff Approval - "&'Model update'!B3 -> Tariff Approval - MultiNet | C1: ='Model update'!B5&"TarContForm" -> 2020TarContForm
B3: ='Model update'!$B$5&" TARIFF CONTROL FORMULA" -> 2020 TARIFF CONTROL FORMULA
B6: CPI
B8: ="CPI June "&'Model update'!$B$9 -> CPI June 2018 | C8: ='Model update'!B26 -> 113
B9: ="CPI June "&'Model update'!$B$8 -> CPI June 2019 | C9: ='Model update'!B27 -> 114.8
B11: ="CPI "&'Model update'!$B$5 -> CPI 2020 | C11: =(C9/C8-1) -> 0.01592920354
B15: X factor
B17: ="X "&'Model update'!$B$5 -> X 2020 | C17: ='Model update'!B40 -> -0.01173652192
B20: Pass Through Factor (PT)
B22: pass through
B23: ="AP (t) "&'Model update'!$B$7 -> AP (t) 2020 | C23: ='Model update'!B50 -> 0
B25: Revenue
B26: ∑∑p(t-1)q(t-2) | C26: =C41 -> 203598412.9
B28: PT' (t-1) | C28: 0
B29: ="PT' "&'Model update'!$B$5 -> PT' 2020 | C29: =IF(C26="",0,(C23)/((1+C11)*(1-C17)*C26)) -> 0
B31: ="PTt "&'Model update'!$B$5 -> PTt 2020 | C31: =((1+C29)/(1+C28))-1 -> 0
B36: ='Model update'!$B$5&" Distribution price control" -> 2020 Distribution price control
B38: Average price movement allowed | C38: =(1+C11)*(1-C17)*(1+C31) -> 1.027852679
B40: Proposed distribution tariff revenue | C40: =IF(Prop2020DistTar!G168=0,"",Prop2020DistTar!G168) -> 209269174
B41: Existing distribution tariff revenue | C41: =IF(Prop2020DistTar!H168=0,"",Prop2020DistTar!H168) -> 203598412.9
B42: Average price movement | C42: =IF(C40="","",C40/C41) -> 1.027852678
B44: =IF(C40="","",IF(C38>=C42,"DISTRIBUTION PRICE CONTROL FORMULA COMPLIANT","DISTRIBUTION PRICE CONTROL FORMULA BREACHED")) -> DISTRIBUTION PRICE CONTROL FORMULA COMPLIANT

Sheet 2020RebalContForm
B1: ="Tariff Approval - "&'Model update'!B3 -> Tariff Approval - MultiNet | C1: ='Model update'!B5&"RebalContForm" -> 2020RebalContForm
B3: ='Model update'!$B$5&" REBALANCING CONTROL FORMULA" -> 2020 REBALANCING CONTROL FORMULA
B6: Rebalancing control
B8: ="CPI "&'Model update'!$B$5 -> CPI 2020 | C8: ='2020TarContForm'!C11 -> 0.01592920354
B9: ="Y "&'Model update'!$B$5 -> Y 2020 | C9: 0.02
B10: ="PTt "&'Model update'!$B$5 -> PTt 2020 | C10: ='2020TarContForm'!C31 -> 0
B11: ="Xt "&'Model update'!$B$5 -> Xt 2020 | C11: ='2020TarContForm'!C17 -> -0.01173652192
B13: Rebalancing control | C13: =(1+C8)*(1+C9)*(1+C10)*(1-C11) -> 1.048409732
B17: Rebalancing control summary
C18: Existing | D18: Proposed | E18: Movement | F18: Assessment
B19: =B32 -> Tariff V - Multinet Residential | C19: =C53 -> 188162651.7 | D19: =C54 -> 193440341.9 | E19: =IF(C19=0,0,D19/C19) -> 1.028048554 | F19: =IF(E19=0,"",IF($C$13<=E19,"Breached","Compliant")) -> Compliant
B20: =B62 -> Tariff V - Yarra Valley Residential | C20: =C83 -> 2117975.154 | D20: =C84 -> 2172543.619 | E20: 1.02576445 | F20: =IF(E20=0,"",IF($C$13<=E20,"Breached","Compliant")) -> Compliant
B21: =B92 -> Tariff V - South Gippsland Residential | C21: =C113 -> 1569612.502 | D21: =C114 -> 1612368.066 | E21: 1.027239566 | F21: Compliant
B22: =B122 -> Tariff V - Multinet Non-Residential | C22: =C143 -> 9224671.415 | D22: =C144 -> 9453700.082 | E22: 1.02482784 | F22: Compliant
B23: =B152 -> Tariff V - Yarra Valley Non-Residential | C23: =C173 -> 127214.9625 | D23: =C174 -> 129961.8516 | E23: 1.021592501 | F23: Compliant
B24: =B182 -> Tariff V - South Gippsland Non-Residential | C24: =C203 -> 342861.4796 | D24: =C204 -> 349638.3084 | E24: 1.019765501 | F24: Compliant
B25: =B212 -> Tariff D - Multinet | C25: =C227 -> 1943846.962 | D25: =C228 -> 1997988.405 | E25: 1.027852729 | F25: Compliant
B26: =B265 -> Tariff D - Multinet South Gippsland | C26: =C280 -> 76900.0913 | D26: =C281 -> 79041.97276 | E26: 1.027852782 | F26: Compliant
B27: Tariff L - Multinet | C27: =C256 -> 32678.6382 | D27: =C257 -> 33589.76089 | E27: 1.027881293 | F27: Compliant
C28: =SUM(C19:C27) -> 203598412.9 | D28: =SUM(D19:D27) -> 209269174 | E28: 1.027852678
B32: =Prop2020DistTar!B6 -> Tariff V - Multinet Residential | C32: 1 | D32: 2 | E32: 3 | F32: 4 | G32: 5 | H32: 6 | I32: 7 | J32: 8 | K32: 9 | L32: 10 | M32: 11 | N32: 12 | O32: 13 | P32: 14 | Q32: 15 | R32: 16 | S32: 17 | T32: 18 | U32: 19 | V32: 20 | W32: 21
C33: 1 | D33: 2 | E33: 3 | F33: 4 | G33: 5 | H33: 6 | I33: 7 | J33: 8 | K33: 9 | L33: 10 | M33: 11 | N33: 12 | O33: 13 | P33: 14 | Q33: 15 | R33: 16 | S33: 17 | T33: 18 | U33: 19 | V33: 20 | W33: 21
B34: Distribution tariff | C34: Fixed | D34: PkBlk1 | E34: PkBlk2 | F34: PkBlk3 | G34: PkBlk4 | H34: PkBlk5 | I34: Shd1Blk1 | J34: Shd1Blk2 | K34: Shd1Blk3 | L34: Shd1Blk4 | M34: Shd1Blk5 | N34: Shd2Blk1 | O34: Shd2Blk2 | P34: Shd2Blk3 | Q34: Shd2Blk4 | R34: Shd2Blk5 | S34: OPkBlk1 | T34: OPkBlk2 | U34: OPkBlk3 | V34: OPkBlk4 | W34: OPkBlk5
B36: ="Existing (1 Jan-31 Dec): "&Prop2020DistTar!C6 -> Existing (1 Jan-31 Dec): Tariff V - Multinet Residential | C36: =INDEX(Prop2020DistTar!$E$8:$E$28,C$33) -> 0.1801 | D36: =INDEX(Prop2020DistTar!$E$8:$E$28,D$33) -> 8.368040225 | E36: =INDEX(Prop2020DistTar!$E$8:$E$28,E$33) -> 5.7468 | F36: =INDEX(Prop2020DistTar!$E$8:$E$28,F$33) -> 2.9712 | G36: =INDEX(Prop2020DistTar!$E$8:$E$28,G$33) -> 1.5036 | H36: =INDEX(Prop2020DistTar!$E$8:$E$28,H$33) -> 1.1151 | I36: =INDEX(Prop2020DistTar!$E$8:$E$28,I$33) -> 7.986709426 | J36: =INDEX(Prop2020DistTar!$E$8:$E$28,J$33) -> 5.4594 | K36: =INDEX(Prop2020DistTar!$E$8:$E$28,K$33) -> 2.8236 | L36: =INDEX(Prop2020DistTar!$E$8:$E$28,L$33) -> 1.4285 | M36: =INDEX(Prop2020DistTar!$E$8:$E$28,M$33) -> 1.0742 | N36: =INDEX(Prop2020DistTar!$E$8:$E$28,N$33) -> 7.986709426 | O36: =INDEX(Prop2020DistTar!$E$8:$E$28,O$33) -> 5.4594 | P36: =INDEX(Prop2020DistTar!$E$8:$E$28,P$33) -> 2.8236 | Q36: =INDEX(Prop2020DistTar!$E$8:$E$28,Q$33) -> 1.4285 | R36: =INDEX(Prop2020DistTar!$E$8:$E$28,R$33) -> 1.0742 | S36: =INDEX(Prop2020DistTar!$E$8:$E$28,S$33) -> 7.146107788 | T36: =INDEX(Prop2020DistTar!$E$8:$E$28,T$33) -> 4.8849 | U36: =INDEX(Prop2020DistTar!$E$8:$E$28,U$33) -> 2.5264 | V36: =INDEX(Prop2020DistTar!$E$8:$E$28,V$33) -> 1.2781 | W36: =INDEX(Prop2020DistTar!$E$8:$E$28,W$33) -> 0.9613
B38: ="Proposed (1 Jan-31 Dec): "&B32 -> Proposed (1 Jan-31 Dec): Tariff V - Multinet Residential | C38: =INDEX(Prop2020DistTar!$D$8:$D$28,C$32) -> 0.183 | D38: =INDEX(Prop2020DistTar!$D$8:$D$28,D$32) -> 8.750296539 | E38: =INDEX(Prop2020DistTar!$D$8:$D$28,E$32) -> 5.8383 | F38: =INDEX(Prop2020DistTar!$D$8:$D$28,F$32) -> 3.0185 | G38: =INDEX(Prop2020DistTar!$D$8:$D$28,G$32) -> 1.5276 | H38: =INDEX(Prop2020DistTar!$D$8:$D$28,H$32) -> 1.1329 | I38: =INDEX(Prop2020DistTar!$D$8:$D$28,I$32) -> 8.351549891 | J38: =INDEX(Prop2020DistTar!$D$8:$D$28,J$32) -> 5.5464 | K38: =INDEX(Prop2020DistTar!$D$8:$D$28,K$32) -> 2.8686 | L38: =INDEX(Prop2020DistTar!$D$8:$D$28,L$32) -> 1.4513 | M38: =INDEX(Prop2020DistTar!$D$8:$D$28,M$32) -> 1.0913 | N38: =INDEX(Prop2020DistTar!$D$8:$D$28,N$32) -> 8.351549891 | O38: =INDEX(Prop2020DistTar!$D$8:$D$28,O$32) -> 5.5464 | P38: =INDEX(Prop2020DistTar!$D$8:$D$28,P$32) -> 2.8686 | Q38: =INDEX(Prop2020DistTar!$D$8:$D$28,Q$32) -> 1.4513 | R38: =INDEX(Prop2020DistTar!$D$8:$D$28,R$32) -> 1.0913 | S38: =INDEX(Prop2020DistTar!$D$8:$D$28,S$32) -> 7.472536888 | T38: =INDEX(Prop2020DistTar!$D$8:$D$28,T$32) -> 4.9627 | U38: =INDEX(Prop2020DistTar!$D$8:$D$28,U$32) -> 2.5666 | V38: =INDEX(Prop2020DistTar!$D$8:$D$28,V$32) -> 1.2985 | W38: =INDEX(Prop2020DistTar!$D$8:$D$28,W$32) -> 0.9766
B40: Distribution volumes (actual) | C40: Fixed | D40: PkBlk1 | E40: PkBlk2 | F40: PkBlk3 | G40: PkBlk4 | H40: PkBlk5 | I40: Shd1Blk1 | J40: Shd1Blk2 | K40: Shd1Blk3 | L40: Shd1Blk4 | M40: Shd1Blk5 | N40: Shd2Blk1 | O40: Shd2Blk2 | P40: Shd2Blk3 | Q40: Shd2Blk4 | R40: Shd2Blk5 | S40: OPkBlk1 | T40: OPkBlk2 | U40: OPkBlk3 | V40: OPkBlk4 | W40: OPkBlk5
B42: =B36 -> Existing (1 Jan-31 Dec): Tariff V - Multinet Residential | C42: =INDEX(Prop2020DistTar!$F$8:$F$28,C$32) -> 677911 | D42: =INDEX(Prop2020DistTar!$F$8:$F$28,D$32) -> 3644226.866 | E42: =INDEX(Prop2020DistTar!$F$8:$F$28,E$32) -> 3061316.87 | F42: =INDEX(Prop2020DistTar!$F$8:$F$28,F$32) -> 2663703.461 | G42: =INDEX(Prop2020DistTar!$F$8:$F$28,G$32) -> 4323577.418 | H42: =INDEX(Prop2020DistTar!$F$8:$F$28,H$32) -> 8511966.02 | I42: =INDEX(Prop2020DistTar!$F$8:$F$28,I$32) -> 909391.3872 | J42: =INDEX(Prop2020DistTar!$F$8:$F$28,J$32) -> 720256.5218 | K42: =INDEX(Prop2020DistTar!$F$8:$F$28,K$32) -> 580423.2683 | L42: =INDEX(Prop2020DistTar!$F$8:$F$28,L$32) -> 832054.5349 | M42: =INDEX(Prop2020DistTar!$F$8:$F$28,M$32) -> 1271057.51 | N42: =INDEX(Prop2020DistTar!$F$8:$F$28,N$32) -> 879745.9885 | O42: =INDEX(Prop2020DistTar!$F$8:$F$28,O$32) -> 597219.3976 | P42: =INDEX(Prop2020DistTar!$F$8:$F$28,P$32) -> 387562.8874 | Q42: =INDEX(Prop2020DistTar!$F$8:$F$28,Q$32) -> 417870.9584 | R42: =INDEX(Prop2020DistTar!$F$8:$F$28,R$32) -> 483169.1906 | S42: =INDEX(Prop2020DistTar!$F$8:$F$28,S$32) -> 4421093.801 | T42: =INDEX(Prop2020DistTar!$F$8:$F$28,T$32) -> 1703421.507 | U42: =INDEX(Prop2020DistTar!$F$8:$F$28,U$32) -> 742019.8457 | V42: =INDEX(Prop2020DistTar!$F$8:$F$28,V$32) -> 672243.8988 | W42: =INDEX(Prop2020DistTar!$F$8:$F$28,W$32) -> 1113875.999
B44: =B38 -> Proposed (1 Jan-31 Dec): Tariff V - Multinet Residential | C44: =INDEX(Prop2020DistTar!$F$8:$F$28,C$32) -> 677911 | D44: =INDEX(Prop2020DistTar!$F$8:$F$28,D$32) -> 3644226.866 | E44: =INDEX(Prop2020DistTar!$F$8:$F$28,E$32) -> 3061316.87 | F44: =INDEX(Prop2020DistTar!$F$8:$F$28,F$32) -> 2663703.461 | G44: =INDEX(Prop2020DistTar!$F$8:$F$28,G$32) -> 4323577.418 | H44: =INDEX(Prop2020DistTar!$F$8:$F$28,H$32) -> 8511966.02 | I44: =INDEX(Prop2020DistTar!$F$8:$F$28,I$32) -> 909391.3872 | J44: =INDEX(Prop2020DistTar!$F$8:$F$28,J$32) -> 720256.5218 | K44: =INDEX(Prop2020DistTar!$F$8:$F$28,K$32) -> 580423.2683 | L44: =INDEX(Prop2020DistTar!$F$8:$F$28,L$32) -> 832054.5349 | M44: =INDEX(Prop2020DistTar!$F$8:$F$28,M$32) -> 1271057.51 | N44: =INDEX(Prop2020DistTar!$F$8:$F$28,N$32) -> 879745.9885 | O44: =INDEX(Prop2020DistTar!$F$8:$F$28,O$32) -> 597219.3976 | P44: =INDEX(Prop2020DistTar!$F$8:$F$28,P$32) -> 387562.8874 | Q44: =INDEX(Prop2020DistTar!$F$8:$F$28,Q$32) -> 417870.9584 | R44: =INDEX(Prop2020DistTar!$F$8:$F$28,R$32) -> 483169.1906 | S44: =INDEX(Prop2020DistTar!$F$8:$F$28,S$32) -> 4421093.801 | T44: =INDEX(Prop2020DistTar!$F$8:$F$28,T$32) -> 1703421.507 | U44: =INDEX(Prop2020DistTar!$F$8:$F$28,U$32) -> 742019.8457 | V44: =INDEX(Prop2020DistTar!$F$8:$F$28,V$32) -> 672243.8988 | W44: =INDEX(Prop2020DistTar!$F$8:$F$28,W$32) -> 1113875.999
B46: Distribution revenue | C46: Fixed | D46: PkBlk1 | E46: PkBlk2 | F46: PkBlk3 | G46: PkBlk4 | H46: PkBlk5 | I46: Shd1Blk1 | J46: Shd1Blk2 | K46: Shd1Blk3 | L46: Shd1Blk4 | M46: Shd1Blk5 | N46: Shd2Blk1 | O46: Shd2Blk2 | P46: Shd2Blk3 | Q46: Shd2Blk4 | R46: Shd2Blk5 | S46: OPkBlk1 | T46: OPkBlk2 | U46: OPkBlk3 | V46: OPkBlk4 | W46: OPkBlk5
B48: =B42 -> Existing (1 Jan-31 Dec): Tariff V - Multinet Residential | C48: =INDEX(Prop2020DistTar!$H$8:$H$28,C$33) -> 44563496.45 | D48: =INDEX(Prop2020DistTar!$H$8:$H$28,D$33) -> 30495037 | E48: =INDEX(Prop2020DistTar!$H$8:$H$28,E$33) -> 17592775.79 | F48: =INDEX(Prop2020DistTar!$H$8:$H$28,F$33) -> 7914395.724 | G48: =INDEX(Prop2020DistTar!$H$8:$H$28,G$33) -> 6500931.006 | H48: =INDEX(Prop2020DistTar!$H$8:$H$28,H$33) -> 9491693.309 | I48: =INDEX(Prop2020DistTar!$H$8:$H$28,I$33) -> 7263044.764 | J48: =INDEX(Prop2020DistTar!$H$8:$H$28,J$33) -> 3932168.455 | K48: =INDEX(Prop2020DistTar!$H$8:$H$28,K$33) -> 1638883.14 | L48: =INDEX(Prop2020DistTar!$H$8:$H$28,L$33) -> 1188589.903 | M48: =INDEX(Prop2020DistTar!$H$8:$H$28,M$33) -> 1365369.977 | N48: =INDEX(Prop2020DistTar!$H$8:$H$28,N$33) -> 7026275.578 | O48: =INDEX(Prop2020DistTar!$H$8:$H$28,O$33) -> 3260459.579 | P48: =INDEX(Prop2020DistTar!$H$8:$H$28,P$33) -> 1094322.569 | Q48: =INDEX(Prop2020DistTar!$H$8:$H$28,Q$33) -> 596928.664 | R48: =INDEX(Prop2020DistTar!$H$8:$H$28,R$33) -> 519020.3445 | S48: =INDEX(Prop2020DistTar!$H$8:$H$28,S$33) -> 31593612.84 | T48: =INDEX(Prop2020DistTar!$H$8:$H$28,T$33) -> 8321043.718 | U48: =INDEX(Prop2020DistTar!$H$8:$H$28,U$33) -> 1874638.938 | V48: =INDEX(Prop2020DistTar!$H$8:$H$28,V$33) -> 859194.9271 | W48: =INDEX(Prop2020DistTar!$H$8:$H$28,W$33) -> 1070768.998
B50: =B44 -> Proposed (1 Jan-31 Dec): Tariff V - Multinet Residential | C50: =INDEX(Prop2020DistTar!$G$8:$G$28,C$32) -> 45281065.25 | D50: =INDEX(Prop2020DistTar!$G$8:$G$28,D$32) -> 31888065.73 | E50: =INDEX(Prop2020DistTar!$G$8:$G$28,E$32) -> 17872886.28 | F50: =INDEX(Prop2020DistTar!$G$8:$G$28,F$32) -> 8040388.898 | G50: =INDEX(Prop2020DistTar!$G$8:$G$28,G$32) -> 6604696.864 | H50: =INDEX(Prop2020DistTar!$G$8:$G$28,H$32) -> 9643206.304 | I50: =INDEX(Prop2020DistTar!$G$8:$G$28,I$32) -> 7594827.54 | J50: =INDEX(Prop2020DistTar!$G$8:$G$28,J$32) -> 3994830.772 | K50: =INDEX(Prop2020DistTar!$G$8:$G$28,K$32) -> 1665002.187 | L50: =INDEX(Prop2020DistTar!$G$8:$G$28,L$32) -> 1207560.746 | M50: =INDEX(Prop2020DistTar!$G$8:$G$28,M$32) -> 1387105.061 | N50: =INDEX(Prop2020DistTar!$G$8:$G$28,N$32) -> 7347242.514 | O50: =INDEX(Prop2020DistTar!$G$8:$G$28,O$32) -> 3312417.667 | P50: =INDEX(Prop2020DistTar!$G$8:$G$28,P$32) -> 1111762.899 | Q50: =INDEX(Prop2020DistTar!$G$8:$G$28,Q$32) -> 606456.1219 | R50: =INDEX(Prop2020DistTar!$G$8:$G$28,R$32) -> 527282.5377 | S50: =INDEX(Prop2020DistTar!$G$8:$G$28,S$32) -> 33036786.51 | T50: =INDEX(Prop2020DistTar!$G$8:$G$28,T$32) -> 8453569.911 | U50: =INDEX(Prop2020DistTar!$G$8:$G$28,U$32) -> 1904468.136 | V50: =INDEX(Prop2020DistTar!$G$8:$G$28,V$32) -> 872908.7026 | W50: =INDEX(Prop2020DistTar!$G$8:$G$28,W$32) -> 1087811.301
B52: Revenue | C52: Total
B53: =B48 -> Existing (1 Jan-31 Dec): Tariff V - Multinet Residential | C53: =SUM(C48:W48) -> 188162651.7
B54: =B50 -> Proposed (1 Jan-31 Dec): Tariff V - Multinet Residential | C54: =SUM(C50:W50) -> 193440341.9
B56: Average price movement | C56: =IF(C54=0,"",C54/C53) -> 1.028048554
B58: =IF(C56="","",IF(C56<=$C$13,"REBALANCING CONTROL COMPLIANT","REBALANCING CONTROL BREACHED")) -> REBALANCING CONTROL COMPLIANT
B62: =Prop2020DistTar!B52 -> Tariff V - Yarra Valley Residential | C62: 1 | D62: 2 | E62: 3 | F62: 4 | G62: 5 | H62: 6 | I62: 7 | J62: 8 | K62: 9 | L62: 10 | M62: 11 | N62: 12 | O62: 13 | P62: 14 | Q62: 15 | R62: 16 | S62: 17 | T62: 18 | U62: 19 | V62: 20 | W62: 21
C63: 1 | D63: 2 | E63: 3 | F63: 4 | G63: 5 | H63: 6 | I63: 7 | J63: 8 | K63: 9 | L63: 10 | M63: 11 | N63: 12 | O63: 13 | P63: 14 | Q63: 15 | R63: 16 | S63: 17 | T63: 18 | U63: 19 | V63: 20 | W63: 21
B64: Distribution tariff | C64: Fixed | D64: PkBlk1 | E64: PkBlk2 | F64: PkBlk3 | G64: PkBlk4 | H64: PkBlk5 | I64: Shd1Blk1 | J64: Shd1Blk2 | K64: Shd1Blk3 | L64: Shd1Blk4 | M64: Shd1Blk5 | N64: Shd2Blk1 | O64: Shd2Blk2 | P64: Shd2Blk3 | Q64: Shd2Blk4 | R64: Shd2Blk5 | S64: OPkBlk1 | T64: OPkBlk2 | U64: OPkBlk3 | V64: OPkBlk4 | W64: OPkBlk5
B66: ="Existing (1 Jan-31 Dec): "&Prop2020DistTar!C52 -> Existing (1 Jan-31 Dec): Tariff V - Yarra Valley Residential | C66: =INDEX(Prop2020DistTar!$E$54:$E$74,C$33) -> 0.1801 | D66: =INDEX(Prop2020DistTar!$E$54:$E$74,D$33) -> 9.972245018 | E66: =INDEX(Prop2020DistTar!$E$54:$E$74,E$33) -> 7.7165 | F66: =INDEX(Prop2020DistTar!$E$54:$E$74,F$33) -> 5.5158 | G66: =INDEX(Prop2020DistTar!$E$54:$E$74,G$33) -> 4.3511 | H66: =INDEX(Prop2020DistTar!$E$54:$E$74,H$33) -> 4.0552 | I66: =INDEX(Prop2020DistTar!$E$54:$E$74,I$33) -> 9.638724418 | J66: =INDEX(Prop2020DistTar!$E$54:$E$74,J$33) -> 7.4885 | K66: =INDEX(Prop2020DistTar!$E$54:$E$74,K$33) -> 5.3979 | L66: =INDEX(Prop2020DistTar!$E$54:$E$74,L$33) -> 4.2913 | M66: =INDEX(Prop2020DistTar!$E$54:$E$74,M$33) -> 4.0103 | N66: =INDEX(Prop2020DistTar!$E$54:$E$74,N$33) -> 9.638724418 | O66: =INDEX(Prop2020DistTar!$E$54:$E$74,O$33) -> 7.4885 | P66: =INDEX(Prop2020DistTar!$E$54:$E$74,P$33) -> 5.3979 | Q66: =INDEX(Prop2020DistTar!$E$54:$E$74,Q$33) -> 4.2913 | R66: =INDEX(Prop2020DistTar!$E$54:$E$74,R$33) -> 4.0103 | S66: =INDEX(Prop2020DistTar!$E$54:$E$74,S$33) -> 8.971997071 | T66: =INDEX(Prop2020DistTar!$E$54:$E$74,T$33) -> 7.0327 | U66: =INDEX(Prop2020DistTar!$E$54:$E$74,U$33) -> 5.1621 | V66: =INDEX(Prop2020DistTar!$E$54:$E$74,V$33) -> 4.172 | W66: =INDEX(Prop2020DistTar!$E$54:$E$74,W$33) -> 3.9206
B68: ="Proposed (1 Jan-31 Dec): "&B62 -> Proposed (1 Jan-31 Dec): Tariff V - Yarra Valley Residential | C68: =INDEX(Prop2020DistTar!$D$54:$D$74,C$32) -> 0.183 | D68: =INDEX(Prop2020DistTar!$D$54:$D$74,D$32) -> 10.42783213 | E68: =INDEX(Prop2020DistTar!$D$54:$D$74,E$32) -> 7.8394 | F68: =INDEX(Prop2020DistTar!$D$54:$D$74,F$32) -> 5.6037 | G68: =INDEX(Prop2020DistTar!$D$54:$D$74,G$32) -> 4.4204 | H68: =INDEX(Prop2020DistTar!$D$54:$D$74,H$32) -> 4.1198 | I68: =INDEX(Prop2020DistTar!$D$54:$D$74,I$32) -> 10.07910894 | J68: =INDEX(Prop2020DistTar!$D$54:$D$74,J$32) -> 7.6078 | K68: =INDEX(Prop2020DistTar!$D$54:$D$74,K$32) -> 5.4839 | L68: =INDEX(Prop2020DistTar!$D$54:$D$74,L$32) -> 4.3597 | M68: =INDEX(Prop2020DistTar!$D$54:$D$74,M$32) -> 4.0742 | N68: =INDEX(Prop2020DistTar!$D$54:$D$74,N$32) -> 10.07910894 | O68: =INDEX(Prop2020DistTar!$D$54:$D$74,O$32) -> 7.6078 | P68: =INDEX(Prop2020DistTar!$D$54:$D$74,P$32) -> 5.4839 | Q68: =INDEX(Prop2020DistTar!$D$54:$D$74,Q$32) -> 4.3597 | R68: =INDEX(Prop2020DistTar!$D$54:$D$74,R$32) -> 4.0742 | S68: =INDEX(Prop2020DistTar!$D$54:$D$74,S$32) -> 9.381868411 | T68: =INDEX(Prop2020DistTar!$D$54:$D$74,T$32) -> 7.1447 | U68: =INDEX(Prop2020DistTar!$D$54:$D$74,U$32) -> 5.2443 | V68: =INDEX(Prop2020DistTar!$D$54:$D$74,V$32) -> 4.2385 | W68: =INDEX(Prop2020DistTar!$D$54:$D$74,W$32) -> 3.9831
B70: Distribution volumes (actual) | C70: Fixed | D70: PkBlk1 | E70: PkBlk2 | F70: PkBlk3 | G70: PkBlk4 | H70: PkBlk5 | I70: Shd1Blk1 | J70: Shd1Blk2 | K70: Shd1Blk3 | L70: Shd1Blk4 | M70: Shd1Blk5 | N70: Shd2Blk1 | O70: Shd2Blk2 | P70: Shd2Blk3 | Q70: Shd2Blk4 | R70: Shd2Blk5 | S70: OPkBlk1 | T70: OPkBlk2 | U70: OPkBlk3 | V70: OPkBlk4 | W70: OPkBlk5
B72: =B66 -> Existing (1 Jan-31 Dec): Tariff V - Yarra Valley Residential | C72: =INDEX(Prop2020DistTar!$F$54:$F$74,C$32) -> 5449 | D72: =INDEX(Prop2020DistTar!$F$54:$F$74,D$32) -> 29024.73121 | E72: =INDEX(Prop2020DistTar!$F$54:$F$74,E$32) -> 24230.22273 | F72: =INDEX(Prop2020DistTar!$F$54:$F$74,F$32) -> 21044.12403 | G72: =INDEX(Prop2020DistTar!$F$54:$F$74,G$32) -> 33858.74666 | H72: =INDEX(Prop2020DistTar!$F$54:$F$74,H$32) -> 59278.5723 | I72: =INDEX(Prop2020DistTar!$F$54:$F$74,I$32) -> 7162.36725 | J72: =INDEX(Prop2020DistTar!$F$54:$F$74,J$32) -> 5595.99381 | K72: =INDEX(Prop2020DistTar!$F$54:$F$74,K$32) -> 4560.00961 | L72: =INDEX(Prop2020DistTar!$F$54:$F$74,L$32) -> 7028.43581 | M72: =INDEX(Prop2020DistTar!$F$54:$F$74,M$32) -> 12087.90897 | N72: =INDEX(Prop2020DistTar!$F$54:$F$74,N$32) -> 7056.94206 | O72: =INDEX(Prop2020DistTar!$F$54:$F$74,O$32) -> 4924.06875 | P72: =INDEX(Prop2020DistTar!$F$54:$F$74,P$32) -> 3190.42221 | Q72: =INDEX(Prop2020DistTar!$F$54:$F$74,Q$32) -> 2922.93423 | R72: =INDEX(Prop2020DistTar!$F$54:$F$74,R$32) -> 3153.98707 | S72: =INDEX(Prop2020DistTar!$F$54:$F$74,S$32) -> 30252.3261 | T72: =INDEX(Prop2020DistTar!$F$54:$F$74,T$32) -> 11025.2406 | U72: =INDEX(Prop2020DistTar!$F$54:$F$74,U$32) -> 4742.13758 | V72: =INDEX(Prop2020DistTar!$F$54:$F$74,V$32) -> 3472.25867 | W72: =INDEX(Prop2020DistTar!$F$54:$F$74,W$32) -> 7690.4559
B74: =B68 -> Proposed (1 Jan-31 Dec): Tariff V - Yarra Valley Residential | C74: =INDEX(Prop2020DistTar!$F$54:$F$74,C$32) -> 5449 | D74: =INDEX(Prop2020DistTar!$F$54:$F$74,D$32) -> 29024.73121 | E74: =INDEX(Prop2020DistTar!$F$54:$F$74,E$32) -> 24230.22273 | F74: =INDEX(Prop2020DistTar!$F$54:$F$74,F$32) -> 21044.12403 | G74: =INDEX(Prop2020DistTar!$F$54:$F$74,G$32) -> 33858.74666 | H74: =INDEX(Prop2020DistTar!$F$54:$F$74,H$32) -> 59278.5723 | I74: =INDEX(Prop2020DistTar!$F$54:$F$74,I$32) -> 7162.36725 | J74: =INDEX(Prop2020DistTar!$F$54:$F$74,J$32) -> 5595.99381 | K74: =INDEX(Prop2020DistTar!$F$54:$F$74,K$32) -> 4560.00961 | L74: =INDEX(Prop2020DistTar!$F$54:$F$74,L$32) -> 7028.43581 | M74: =INDEX(Prop2020DistTar!$F$54:$F$74,M$32) -> 12087.90897 | N74: =INDEX(Prop2020DistTar!$F$54:$F$74,N$32) -> 7056.94206 | O74: =INDEX(Prop2020DistTar!$F$54:$F$74,O$32) -> 4924.06875 | P74: =INDEX(Prop2020DistTar!$F$54:$F$74,P$32) -> 3190.42221 | Q74: =INDEX(Prop2020DistTar!$F$54:$F$74,Q$32) -> 2922.93423 | R74: =INDEX(Prop2020DistTar!$F$54:$F$74,R$32) -> 3153.98707 | S74: =INDEX(Prop2020DistTar!$F$54:$F$74,S$32) -> 30252.3261 | T74: =INDEX(Prop2020DistTar!$F$54:$F$74,T$32) -> 11025.2406 | U74: =INDEX(Prop2020DistTar!$F$54:$F$74,U$32) -> 4742.13758 | V74: =INDEX(Prop2020DistTar!$F$54:$F$74,V$32) -> 3472.25867 | W74: =INDEX(Prop2020DistTar!$F$54:$F$74,W$32) -> 7690.4559
B76: Distribution revenue | C76: Fixed | D76: PkBlk1 | E76: PkBlk2 | F76: PkBlk3 | G76: PkBlk4 | H76: PkBlk5 | I76: Shd1Blk1 | J76: Shd1Blk2 | K76: Shd1Blk3 | L76: Shd1Blk4 | M76: Shd1Blk5 | N76: Shd2Blk1 | O76: Shd2Blk2 | P76: Shd2Blk3 | Q76: Shd2Blk4 | R76: Shd2Blk5 | S76: OPkBlk1 | T76: OPkBlk2 | U76: OPkBlk3 | V76: OPkBlk4 | W76: OPkBlk5
B78: =B72 -> Existing (1 Jan-31 Dec): Tariff V - Yarra Valley Residential | C78: =INDEX(Prop2020DistTar!$H$54:$H$74,C$33) -> 358198.1885 | D78: =INDEX(Prop2020DistTar!$H$54:$H$74,D$33) -> 289441.7312 | E78: =INDEX(Prop2020DistTar!$H$54:$H$74,E$33) -> 186972.5137 | F78: =INDEX(Prop2020DistTar!$H$54:$H$74,F$33) -> 116075.1793 | G78: =INDEX(Prop2020DistTar!$H$54:$H$74,G$33) -> 147322.7926 | H78: =INDEX(Prop2020DistTar!$H$54:$H$74,H$33) -> 240386.4664 | I78: =INDEX(Prop2020DistTar!$H$54:$H$74,I$33) -> 69036.0841 | J78: =INDEX(Prop2020DistTar!$H$54:$H$74,J$33) -> 41905.59965 | K78: =INDEX(Prop2020DistTar!$H$54:$H$74,K$33) -> 24614.47587 | L78: =INDEX(Prop2020DistTar!$H$54:$H$74,L$33) -> 30161.12659 | M78: =INDEX(Prop2020DistTar!$H$54:$H$74,M$33) -> 48476.14134 | N78: =INDEX(Prop2020DistTar!$H$54:$H$74,N$33) -> 68019.91975 | O78: =INDEX(Prop2020DistTar!$H$54:$H$74,O$33) -> 36873.88883 | P78: =INDEX(Prop2020DistTar!$H$54:$H$74,P$33) -> 17221.58005 | Q78: =INDEX(Prop2020DistTar!$H$54:$H$74,Q$33) -> 12543.18766 | R78: =INDEX(Prop2020DistTar!$H$54:$H$74,R$33) -> 12648.43435 | S78: =INDEX(Prop2020DistTar!$H$54:$H$74,S$33) -> 271423.7811 | T78: =INDEX(Prop2020DistTar!$H$54:$H$74,T$33) -> 77537.20957 | U78: =INDEX(Prop2020DistTar!$H$54:$H$74,U$33) -> 24479.3884 | V78: =INDEX(Prop2020DistTar!$H$54:$H$74,V$33) -> 14486.26317 | W78: =INDEX(Prop2020DistTar!$H$54:$H$74,W$33) -> 30151.2014
B80: =B74 -> Proposed (1 Jan-31 Dec): Tariff V - Yarra Valley Residential | C80: =INDEX(Prop2020DistTar!$G$54:$G$74,C$32) -> 363965.955 | D80: =INDEX(Prop2020DistTar!$G$54:$G$74,D$32) -> 302665.0246 | E80: =INDEX(Prop2020DistTar!$G$54:$G$74,E$32) -> 189950.4081 | F80: =INDEX(Prop2020DistTar!$G$54:$G$74,F$32) -> 117924.9578 | G80: =INDEX(Prop2020DistTar!$G$54:$G$74,G$32) -> 149669.2037 | H80: =INDEX(Prop2020DistTar!$G$54:$G$74,H$32) -> 244215.8622 | I80: =INDEX(Prop2020DistTar!$G$54:$G$74,I$32) -> 72190.27975 | J80: =INDEX(Prop2020DistTar!$G$54:$G$74,J$32) -> 42573.20171 | K80: =INDEX(Prop2020DistTar!$G$54:$G$74,K$32) -> 25006.6367 | L80: =INDEX(Prop2020DistTar!$G$54:$G$74,L$32) -> 30641.8716 | M80: =INDEX(Prop2020DistTar!$G$54:$G$74,M$32) -> 49248.55873 | N80: =INDEX(Prop2020DistTar!$G$54:$G$74,N$32) -> 71127.68778 | O80: =INDEX(Prop2020DistTar!$G$54:$G$74,O$32) -> 37461.33024 | P80: =INDEX(Prop2020DistTar!$G$54:$G$74,P$32) -> 17495.95636 | Q80: =INDEX(Prop2020DistTar!$G$54:$G$74,Q$32) -> 12743.11636 | R80: =INDEX(Prop2020DistTar!$G$54:$G$74,R$32) -> 12849.97412 | S80: =INDEX(Prop2020DistTar!$G$54:$G$74,S$32) -> 283823.3426 | T80: =INDEX(Prop2020DistTar!$G$54:$G$74,T$32) -> 78772.03651 | U80: =INDEX(Prop2020DistTar!$G$54:$G$74,U$32) -> 24869.19211 | V80: =INDEX(Prop2020DistTar!$G$54:$G$74,V$32) -> 14717.16837 | W80: =INDEX(Prop2020DistTar!$G$54:$G$74,W$32) -> 30631.8549
B82: Revenue | C82: Total
B83: =B78 -> Existing (1 Jan-31 Dec): Tariff V - Yarra Valley Residential | C83: =SUM(C78:W78) -> 2117975.154
B84: =B80 -> Proposed (1 Jan-31 Dec): Tariff V - Yarra Valley Residential | C84: =SUM(C80:W80) -> 2172543.619
B86: Average price movement | C86: =IF(C84=0,"",C84/C83) -> 1.02576445
B88: =IF(C86="","",IF(C86<=$C$13,"REBALANCING CONTROL COMPLIANT","REBALANCING CONTROL BREACHED")) -> REBALANCING CONTROL COMPLIANT
B92: =Prop2020DistTar!B98 -> Tariff V - South Gippsland Residential | C92: 1 | D92: 2 | E92: 3 | F92: 4 | G92: 5 | H92: 6 | I92: 7 | J92: 8 | K92: 9 | L92: 10 | M92: 11 | N92: 12 | O92: 13 | P92: 14 | Q92: 15 | R92: 16 | S92: 17 | T92: 18 | U92: 19 | V92: 20 | W92: 21
C93: 1 | D93: 2 | E93: 3 | F93: 4 | G93: 5 | H93: 6 | I93: 7 | J93: 8 | K93: 9 | L93: 10 | M93: 11 | N93: 12 | O93: 13 | P93: 14 | Q93: 15 | R93: 16 | S93: 17 | T93: 18 | U93: 19 | V93: 20 | W93: 21
B94: Distribution tariff | C94: Fixed | D94: PkBlk1 | E94: PkBlk2 | F94: PkBlk3 | G94: PkBlk4 | H94: PkBlk5 | I94: Shd1Blk1 | J94: Shd1Blk2 | K94: Shd1Blk3 | L94: Shd1Blk4 | M94: Shd1Blk5 | N94: Shd2Blk1 | O94: Shd2Blk2 | P94: Shd2Blk3 | Q94: Shd2Blk4 | R94: Shd2Blk5 | S94: OPkBlk1 | T94: OPkBlk2 | U94: OPkBlk3 | V94: OPkBlk4 | W94: OPkBlk5
B96: ="Existing (1 Jan-31 Dec): "&Prop2020DistTar!C98 -> Existing (1 Jan-31 Dec): Tariff V - South Gippsland Residential | C96: =INDEX(Prop2020DistTar!$E$100:$E$120,C$33) -> 0.1801 | D96: =INDEX(Prop2020DistTar!$E$100:$E$120,D$33) -> 10.85301978 | E96: =INDEX(Prop2020DistTar!$E$100:$E$120,E$33) -> 8.4459 | F96: =INDEX(Prop2020DistTar!$E$100:$E$120,F$33) -> 6.1089 | G96: =INDEX(Prop2020DistTar!$E$100:$E$120,G$33) -> 4.8721 | H96: =INDEX(Prop2020DistTar!$E$100:$E$120,H$33) -> 4.558 | I96: =INDEX(Prop2020DistTar!$E$100:$E$120,I$33) -> 10.49878491 | J96: =INDEX(Prop2020DistTar!$E$100:$E$120,J$33) -> 8.2039 | K96: =INDEX(Prop2020DistTar!$E$100:$E$120,K$33) -> 5.9837 | L96: =INDEX(Prop2020DistTar!$E$100:$E$120,L$33) -> 4.8087 | M96: =INDEX(Prop2020DistTar!$E$100:$E$120,M$33) -> 4.5102 | N96: =INDEX(Prop2020DistTar!$E$100:$E$120,N$33) -> 10.49878491 | O96: =INDEX(Prop2020DistTar!$E$100:$E$120,O$33) -> 8.2039 | P96: =INDEX(Prop2020DistTar!$E$100:$E$120,P$33) -> 5.9837 | Q96: =INDEX(Prop2020DistTar!$E$100:$E$120,Q$33) -> 4.8087 | R96: =INDEX(Prop2020DistTar!$E$100:$E$120,R$33) -> 4.5102 | S96: =INDEX(Prop2020DistTar!$E$100:$E$120,S$33) -> 9.790838268 | T96: =INDEX(Prop2020DistTar!$E$100:$E$120,T$33) -> 7.7198 | U96: =INDEX(Prop2020DistTar!$E$100:$E$120,U$33) -> 5.7334 | V96: =INDEX(Prop2020DistTar!$E$100:$E$120,V$33) -> 4.6819 | W96: =INDEX(Prop2020DistTar!$E$100:$E$120,W$33) -> 4.4149
B98: ="Proposed (1 Jan-31 Dec): "&B92 -> Proposed (1 Jan-31 Dec): Tariff V - South Gippsland Residential | C98: =INDEX(Prop2020DistTar!$D$100:$D$120,C$32) -> 0.183 | D98: =INDEX(Prop2020DistTar!$D$100:$D$120,D$32) -> 11.34884013 | E98: =INDEX(Prop2020DistTar!$D$100:$D$120,E$32) -> 8.5804 | F98: =INDEX(Prop2020DistTar!$D$100:$D$120,F$32) -> 6.2062 | G98: =INDEX(Prop2020DistTar!$D$100:$D$120,G$32) -> 4.9497 | H98: =INDEX(Prop2020DistTar!$D$100:$D$120,H$32) -> 4.6306 | I98: =INDEX(Prop2020DistTar!$D$100:$D$120,I$32) -> 10.97839894 | J98: =INDEX(Prop2020DistTar!$D$100:$D$120,J$32) -> 8.3346 | K98: =INDEX(Prop2020DistTar!$D$100:$D$120,K$32) -> 6.079 | L98: =INDEX(Prop2020DistTar!$D$100:$D$120,L$32) -> 4.8853 | M98: =INDEX(Prop2020DistTar!$D$100:$D$120,M$32) -> 4.582 | N98: =INDEX(Prop2020DistTar!$D$100:$D$120,N$32) -> 10.97839894 | O98: =INDEX(Prop2020DistTar!$D$100:$D$120,O$32) -> 8.3346 | P98: =INDEX(Prop2020DistTar!$D$100:$D$120,P$32) -> 6.079 | Q98: =INDEX(Prop2020DistTar!$D$100:$D$120,Q$32) -> 4.8853 | R98: =INDEX(Prop2020DistTar!$D$100:$D$120,R$32) -> 4.582 | S98: =INDEX(Prop2020DistTar!$D$100:$D$120,S$32) -> 10.23813412 | T98: =INDEX(Prop2020DistTar!$D$100:$D$120,T$32) -> 7.8428 | U98: =INDEX(Prop2020DistTar!$D$100:$D$120,U$32) -> 5.8247 | V98: =INDEX(Prop2020DistTar!$D$100:$D$120,V$32) -> 4.7565 | W98: =INDEX(Prop2020DistTar!$D$100:$D$120,W$32) -> 4.4852
B100: Distribution volumes (actual) | C100: Fixed | D100: PkBlk1 | E100: PkBlk2 | F100: PkBlk3 | G100: PkBlk4 | H100: PkBlk5 | I100: Shd1Blk1 | J100: Shd1Blk2 | K100: Shd1Blk3 | L100: Shd1Blk4 | M100: Shd1Blk5 | N100: Shd2Blk1 | O100: Shd2Blk2 | P100: Shd2Blk3 | Q100: Shd2Blk4 | R100: Shd2Blk5 | S100: OPkBlk1 | T100: OPkBlk2 | U100: OPkBlk3 | V100: OPkBlk4 | W100: OPkBlk5
B102: =B96 -> Existing (1 Jan-31 Dec): Tariff V - South Gippsland Residential | C102: =INDEX(Prop2020DistTar!$F$100:$F$120,C$32) -> 5324 | D102: =INDEX(Prop2020DistTar!$F$100:$F$120,D$32) -> 24596.84764 | E102: =INDEX(Prop2020DistTar!$F$100:$F$120,E$32) -> 18168.29062 | F102: =INDEX(Prop2020DistTar!$F$100:$F$120,F$32) -> 14198.81802 | G102: =INDEX(Prop2020DistTar!$F$100:$F$120,G$32) -> 19036.52985 | H102: =INDEX(Prop2020DistTar!$F$100:$F$120,H$32) -> 20412.19059 | I102: =INDEX(Prop2020DistTar!$F$100:$F$120,I$32) -> 5893.45704 | J102: =INDEX(Prop2020DistTar!$F$100:$F$120,J$32) -> 3780.76755 | K102: =INDEX(Prop2020DistTar!$F$100:$F$120,K$32) -> 2390.27203 | L102: =INDEX(Prop2020DistTar!$F$100:$F$120,L$32) -> 2237.18867 | M102: =INDEX(Prop2020DistTar!$F$100:$F$120,M$32) -> 1732.63374 | N102: =INDEX(Prop2020DistTar!$F$100:$F$120,N$32) -> 5413.14387 | O102: =INDEX(Prop2020DistTar!$F$100:$F$120,O$32) -> 2609.83487 | P102: =INDEX(Prop2020DistTar!$F$100:$F$120,P$32) -> 1367.78326 | Q102: =INDEX(Prop2020DistTar!$F$100:$F$120,Q$32) -> 1191.74737 | R102: =INDEX(Prop2020DistTar!$F$100:$F$120,R$32) -> 1400.41932 | S102: =INDEX(Prop2020DistTar!$F$100:$F$120,S$32) -> 21344.00457 | T102: =INDEX(Prop2020DistTar!$F$100:$F$120,T$32) -> 5784.37949 | U102: =INDEX(Prop2020DistTar!$F$100:$F$120,U$32) -> 2586.18427 | V102: =INDEX(Prop2020DistTar!$F$100:$F$120,V$32) -> 2098.63421 | W102: =INDEX(Prop2020DistTar!$F$100:$F$120,W$32) -> 5478.00194
B104: =B98 -> Proposed (1 Jan-31 Dec): Tariff V - South Gippsland Residential | C104: =INDEX(Prop2020DistTar!$F$100:$F$120,C$32) -> 5324 | D104: =INDEX(Prop2020DistTar!$F$100:$F$120,D$32) -> 24596.84764 | E104: =INDEX(Prop2020DistTar!$F$100:$F$120,E$32) -> 18168.29062 | F104: =INDEX(Prop2020DistTar!$F$100:$F$120,F$32) -> 14198.81802 | G104: =INDEX(Prop2020DistTar!$F$100:$F$120,G$32) -> 19036.52985 | H104: =INDEX(Prop2020DistTar!$F$100:$F$120,H$32) -> 20412.19059 | I104: =INDEX(Prop2020DistTar!$F$100:$F$120,I$32) -> 5893.45704 | J104: =INDEX(Prop2020DistTar!$F$100:$F$120,J$32) -> 3780.76755 | K104: =INDEX(Prop2020DistTar!$F$100:$F$120,K$32) -> 2390.27203 | L104: =INDEX(Prop2020DistTar!$F$100:$F$120,L$32) -> 2237.18867 | M104: =INDEX(Prop2020DistTar!$F$100:$F$120,M$32) -> 1732.63374 | N104: =INDEX(Prop2020DistTar!$F$100:$F$120,N$32) -> 5413.14387 | O104: =INDEX(Prop2020DistTar!$F$100:$F$120,O$32) -> 2609.83487 | P104: =INDEX(Prop2020DistTar!$F$100:$F$120,P$32) -> 1367.78326 | Q104: =INDEX(Prop2020DistTar!$F$100:$F$120,Q$32) -> 1191.74737 | R104: =INDEX(Prop2020DistTar!$F$100:$F$120,R$32) -> 1400.41932 | S104: =INDEX(Prop2020DistTar!$F$100:$F$120,S$32) -> 21344.00457 | T104: =INDEX(Prop2020DistTar!$F$100:$F$120,T$32) -> 5784.37949 | U104: =INDEX(Prop2020DistTar!$F$100:$F$120,U$32) -> 2586.18427 | V104: =INDEX(Prop2020DistTar!$F$100:$F$120,V$32) -> 2098.63421 | W104: =INDEX(Prop2020DistTar!$F$100:$F$120,W$32) -> 5478.00194
B106: Distribution revenue | C106: Fixed | D106: PkBlk1 | E106: PkBlk2 | F106: PkBlk3 | G106: PkBlk4 | H106: PkBlk5 | I106: Shd1Blk1 | J106: Shd1Blk2 | K106: Shd1Blk3 | L106: Shd1Blk4 | M106: Shd1Blk5 | N106: Shd2Blk1 | O106: Shd2Blk2 | P106: Shd2Blk3 | Q106: Shd2Blk4 | R106: Shd2Blk5 | S106: OPkBlk1 | T106: OPkBlk2 | U106: OPkBlk3 | V106: OPkBlk4 | W106: OPkBlk5
B108: =B102 -> Existing (1 Jan-31 Dec): Tariff V - South Gippsland Residential | C108: =INDEX(Prop2020DistTar!$H$100:$H$120,C$33) -> 349981.126 | D108: =INDEX(Prop2020DistTar!$H$100:$H$120,D$33) -> 266950.0739 | E108: =INDEX(Prop2020DistTar!$H$100:$H$120,E$33) -> 153447.5657 | F108: =INDEX(Prop2020DistTar!$H$100:$H$120,F$33) -> 86739.1594 | G108: =INDEX(Prop2020DistTar!$H$100:$H$120,G$33) -> 92747.87708 | H108: =INDEX(Prop2020DistTar!$H$100:$H$120,H$33) -> 93038.76471 | I108: =INDEX(Prop2020DistTar!$H$100:$H$120,I$33) -> 61874.13785 | J108: =INDEX(Prop2020DistTar!$H$100:$H$120,J$33) -> 31017.0389 | K108: =INDEX(Prop2020DistTar!$H$100:$H$120,K$33) -> 14302.67075 | L108: =INDEX(Prop2020DistTar!$H$100:$H$120,L$33) -> 10757.96916 | M108: =INDEX(Prop2020DistTar!$H$100:$H$120,M$33) -> 7814.524694 | N108: =INDEX(Prop2020DistTar!$H$100:$H$120,N$33) -> 56831.43319 | O108: =INDEX(Prop2020DistTar!$H$100:$H$120,O$33) -> 21410.82429 | P108: =INDEX(Prop2020DistTar!$H$100:$H$120,P$33) -> 8184.404693 | Q108: =INDEX(Prop2020DistTar!$H$100:$H$120,Q$33) -> 5730.755578 | R108: =INDEX(Prop2020DistTar!$H$100:$H$120,R$33) -> 6316.171217 | S108: =INDEX(Prop2020DistTar!$H$100:$H$120,S$33) -> 208975.6967 | T108: =INDEX(Prop2020DistTar!$H$100:$H$120,T$33) -> 44654.25279 | U108: =INDEX(Prop2020DistTar!$H$100:$H$120,U$33) -> 14827.62889 | V108: =INDEX(Prop2020DistTar!$H$100:$H$120,V$33) -> 9825.595508 | W108: =INDEX(Prop2020DistTar!$H$100:$H$120,W$33) -> 24184.83076
B110: =B104 -> Proposed (1 Jan-31 Dec): Tariff V - South Gippsland Residential | C110: =INDEX(Prop2020DistTar!$G$100:$G$120,C$32) -> 355616.58 | D110: =INDEX(Prop2020DistTar!$G$100:$G$120,D$32) -> 279145.6916 | E110: =INDEX(Prop2020DistTar!$G$100:$G$120,E$32) -> 155891.2008 | F110: =INDEX(Prop2020DistTar!$G$100:$G$120,F$32) -> 88120.7044 | G110: =INDEX(Prop2020DistTar!$G$100:$G$120,G$32) -> 94225.1118 | H110: =INDEX(Prop2020DistTar!$G$100:$G$120,H$32) -> 94520.68975 | I110: =INDEX(Prop2020DistTar!$G$100:$G$120,I$32) -> 64700.7225 | J110: =INDEX(Prop2020DistTar!$G$100:$G$120,J$32) -> 31511.18522 | K110: =INDEX(Prop2020DistTar!$G$100:$G$120,K$32) -> 14530.46367 | L110: =INDEX(Prop2020DistTar!$G$100:$G$120,L$32) -> 10929.33781 | M110: =INDEX(Prop2020DistTar!$G$100:$G$120,M$32) -> 7938.927797 | N110: =INDEX(Prop2020DistTar!$G$100:$G$120,N$32) -> 59427.65291 | O110: =INDEX(Prop2020DistTar!$G$100:$G$120,O$32) -> 21751.92971 | P110: =INDEX(Prop2020DistTar!$G$100:$G$120,P$32) -> 8314.754438 | Q110: =INDEX(Prop2020DistTar!$G$100:$G$120,Q$32) -> 5822.043427 | R110: =INDEX(Prop2020DistTar!$G$100:$G$120,R$32) -> 6416.721324 | S110: =INDEX(Prop2020DistTar!$G$100:$G$120,S$32) -> 218522.7815 | T110: =INDEX(Prop2020DistTar!$G$100:$G$120,T$32) -> 45365.73146 | U110: =INDEX(Prop2020DistTar!$G$100:$G$120,U$32) -> 15063.74752 | V110: =INDEX(Prop2020DistTar!$G$100:$G$120,V$32) -> 9982.15362 | W110: =INDEX(Prop2020DistTar!$G$100:$G$120,W$32) -> 24569.9343
B112: Revenue | C112: Total
B113: =B108 -> Existing (1 Jan-31 Dec): Tariff V - South Gippsland Residential | C113: =SUM(C108:W108) -> 1569612.502
B114: =B110 -> Proposed (1 Jan-31 Dec): Tariff V - South Gippsland Residential | C114: =SUM(C110:W110) -> 1612368.066
B116: Average price movement | C116: =IF(C114=0,"",C114/C113) -> 1.027239566
B118: =IF(C116="","",IF(C116<=$C$13,"REBALANCING CONTROL COMPLIANT","REBALANCING CONTROL BREACHED")) -> REBALANCING CONTROL COMPLIANT
B122: =Prop2020DistTar!B29 -> Tariff V - Multinet Non-Residential | C122: 1 | D122: 2 | E122: 3 | F122: 4 | G122: 5 | S122: 6 | T122: 7 | U122: 8 | V122: 9
C123: 1 | D123: 2 | E123: 3 | F123: 4 | G123: 5 | H123: 6 | I123: 7 | J123: 8 | K123: 9 | L123: 10 | M123: 11 | S123: 12 | T123: 13 | U123: 14 | V123: 15 | W123: 16
B124: Distribution tariff | C124: Fixed | D124: PkBlk1 | E124: PkBlk2 | F124: PkBlk3 | G124: PkBlk4 | H124: PkBlk5 | I124: Shd1Blk1 | J124: Shd1Blk2 | K124: Shd1Blk3 | L124: Shd1Blk4 | M124: Shd1Blk5 | N124: Shd2Blk1 | O124: Shd2Blk2 | P124: Shd2Blk3 | Q124: Shd2Blk4 | R124: Shd2Blk5 | S124: OPkBlk1 | T124: OPkBlk2 | U124: OPkBlk3 | V124: OPkBlk4 | W124: OPkBlk5
B126: ="Existing (1 Jan - 31 Dec): "&Prop2020DistTar!C29 -> Existing (1 Jan - 31 Dec): Tariff V - Multinet Non-Residential | C126: =INDEX(Prop2020DistTar!$E$31:$E$51,C$33) -> 0.2971 | D126: =INDEX(Prop2020DistTar!$E$31:$E$51,D$33) -> 3.821572773 | E126: =INDEX(Prop2020DistTar!$E$31:$E$51,E$33) -> 2.3118 | F126: =INDEX(Prop2020DistTar!$E$31:$E$51,F$33) -> 1.3871 | G126: =INDEX(Prop2020DistTar!$E$31:$E$51,G$33) -> 0.7719 | H126: =INDEX(Prop2020DistTar!$E$31:$E$51,H$33) -> 0.2576 | I126: =INDEX(Prop2020DistTar!$E$31:$E$51,I$33) -> 3.507092558 | J126: =INDEX(Prop2020DistTar!$E$31:$E$51,J$33) -> 2.0808 | K126: =INDEX(Prop2020DistTar!$E$31:$E$51,K$33) -> 1.3177 | L126: =INDEX(Prop2020DistTar!$E$31:$E$51,L$33) -> 0.7521 | M126: =INDEX(Prop2020DistTar!$E$31:$E$51,M$33) -> 0.2316 | N126: =INDEX(Prop2020DistTar!$E$31:$E$51,N$33) -> 3.507092558 | O126: =INDEX(Prop2020DistTar!$E$31:$E$51,O$33) -> 2.0808 | P126: =INDEX(Prop2020DistTar!$E$31:$E$51,P$33) -> 1.3177 | Q126: =INDEX(Prop2020DistTar!$E$31:$E$51,Q$33) -> 0.7521 | R126: =INDEX(Prop2020DistTar!$E$31:$E$51,R$33) -> 0.2316 | S126: =INDEX(Prop2020DistTar!$E$31:$E$51,S$33) -> 3.180685948 | T126: =INDEX(Prop2020DistTar!$E$31:$E$51,T$33) -> 2.0091 | U126: =INDEX(Prop2020DistTar!$E$31:$E$51,U$33) -> 1.2026 | V126: =INDEX(Prop2020DistTar!$E$31:$E$51,V$33) -> 0.7288 | W126: =INDEX(Prop2020DistTar!$E$31:$E$51,W$33) -> 0.2058
B128: ="Proposed (1 Jan-31 Dec): "&B122 -> Proposed (1 Jan-31 Dec): Tariff V - Multinet Non-Residential | C128: =INDEX(Prop2020DistTar!$D$31:$D$51,C$32) -> 0.3018 | D128: =INDEX(Prop2020DistTar!$D$31:$D$51,D$32) -> 3.99611251 | E128: =INDEX(Prop2020DistTar!$D$31:$D$51,E$32) -> 2.3486 | F128: =INDEX(Prop2020DistTar!$D$31:$D$51,F$32) -> 1.4092 | G128: =INDEX(Prop2020DistTar!$D$31:$D$51,G$32) -> 0.7842 | H128: =INDEX(Prop2020DistTar!$D$31:$D$51,H$32) -> 0.2617 | I128: =INDEX(Prop2020DistTar!$D$31:$D$51,I$32) -> 3.66735753 | J128: =INDEX(Prop2020DistTar!$D$31:$D$51,J$32) -> 2.1139 | K128: =INDEX(Prop2020DistTar!$D$31:$D$51,K$32) -> 1.3387 | L128: =INDEX(Prop2020DistTar!$D$31:$D$51,L$32) -> 0.7641 | M128: =INDEX(Prop2020DistTar!$D$31:$D$51,M$32) -> 0.2353 | N128: =INDEX(Prop2020DistTar!$D$31:$D$51,N$32) -> 3.66735753 | O128: =INDEX(Prop2020DistTar!$D$31:$D$51,O$32) -> 2.1139 | P128: =INDEX(Prop2020DistTar!$D$31:$D$51,P$32) -> 1.3387 | Q128: =INDEX(Prop2020DistTar!$D$31:$D$51,Q$32) -> 0.7641 | R128: =INDEX(Prop2020DistTar!$D$31:$D$51,R$32) -> 0.2353 | S128: =INDEX(Prop2020DistTar!$D$31:$D$51,S$32) -> 3.326045221 | T128: =INDEX(Prop2020DistTar!$D$31:$D$51,T$32) -> 2.0411 | U128: =INDEX(Prop2020DistTar!$D$31:$D$51,U$32) -> 1.2218 | V128: =INDEX(Prop2020DistTar!$D$31:$D$51,V$32) -> 0.7404 | W128: =INDEX(Prop2020DistTar!$D$31:$D$51,W$32) -> 0.2091
B130: Distribution volumes (actual) | C130: Fixed | D130: PkBlk1 | E130: PkBlk2 | F130: PkBlk3 | G130: PkBlk4 | H130: PkBlk5 | I130: Shd1Blk1 | J130: Shd1Blk2 | K130: Shd1Blk3 | L130: Shd1Blk4 | M130: Shd1Blk5 | N130: Shd2Blk1 | O130: Shd2Blk2 | P130: Shd2Blk3 | Q130: Shd2Blk4 | R130: Shd2Blk5 | S130: OPkBlk1 | T130: OPkBlk2 | U130: OPkBlk3 | V130: OPkBlk4 | W130: OPkBlk5
B132: =B126 -> Existing (1 Jan - 31 Dec): Tariff V - Multinet Non-Residential | C132: =INDEX(Prop2020DistTar!$F$31:$F$51,C$32) -> 15893 | D132: =INDEX(Prop2020DistTar!$F$31:$F$51,D$32) -> 307852.0832 | E132: =INDEX(Prop2020DistTar!$F$31:$F$51,E$32) -> 503329.6734 | F132: =INDEX(Prop2020DistTar!$F$31:$F$51,F$32) -> 195782.1273 | G132: =INDEX(Prop2020DistTar!$F$31:$F$51,G$32) -> 650338.5962 | H132: =INDEX(Prop2020DistTar!$F$31:$F$51,H$32) -> 795170.6966 | I132: =INDEX(Prop2020DistTar!$F$31:$F$51,I$32) -> 74339.00441 | J132: =INDEX(Prop2020DistTar!$F$31:$F$51,J$32) -> 116401.105 | K132: =INDEX(Prop2020DistTar!$F$31:$F$51,K$32) -> 44612.17384 | L132: =INDEX(Prop2020DistTar!$F$31:$F$51,L$32) -> 145114.8234 | M132: =INDEX(Prop2020DistTar!$F$31:$F$51,M$32) -> 151403.5386 | N132: =INDEX(Prop2020DistTar!$F$31:$F$51,N$32) -> 68871.14153 | O132: =INDEX(Prop2020DistTar!$F$31:$F$51,O$32) -> 104777.2212 | P132: =INDEX(Prop2020DistTar!$F$31:$F$51,P$32) -> 40641.85905 | Q132: =INDEX(Prop2020DistTar!$F$31:$F$51,Q$32) -> 127399.465 | R132: =INDEX(Prop2020DistTar!$F$31:$F$51,R$32) -> 119291.8866 | S132: =INDEX(Prop2020DistTar!$F$31:$F$51,S$32) -> 341453.5896 | T132: =INDEX(Prop2020DistTar!$F$31:$F$51,T$32) -> 511890.749 | U132: =INDEX(Prop2020DistTar!$F$31:$F$51,U$32) -> 189883.5266 | V132: =INDEX(Prop2020DistTar!$F$31:$F$51,V$32) -> 547490.3545 | W132: =INDEX(Prop2020DistTar!$F$31:$F$51,W$32) -> 478141.9969
B134: =B128 -> Proposed (1 Jan-31 Dec): Tariff V - Multinet Non-Residential | C134: =INDEX(Prop2020DistTar!$F$31:$F$51,C$32) -> 15893 | D134: =INDEX(Prop2020DistTar!$F$31:$F$51,D$32) -> 307852.0832 | E134: =INDEX(Prop2020DistTar!$F$31:$F$51,E$32) -> 503329.6734 | F134: =INDEX(Prop2020DistTar!$F$31:$F$51,F$32) -> 195782.1273 | G134: =INDEX(Prop2020DistTar!$F$31:$F$51,G$32) -> 650338.5962 | H134: =INDEX(Prop2020DistTar!$F$31:$F$51,H$32) -> 795170.6966 | I134: =INDEX(Prop2020DistTar!$F$31:$F$51,I$32) -> 74339.00441 | J134: =INDEX(Prop2020DistTar!$F$31:$F$51,J$32) -> 116401.105 | K134: =INDEX(Prop2020DistTar!$F$31:$F$51,K$32) -> 44612.17384 | L134: =INDEX(Prop2020DistTar!$F$31:$F$51,L$32) -> 145114.8234 | M134: =INDEX(Prop2020DistTar!$F$31:$F$51,M$32) -> 151403.5386 | N134: =INDEX(Prop2020DistTar!$F$31:$F$51,N$32) -> 68871.14153 | O134: =INDEX(Prop2020DistTar!$F$31:$F$51,O$32) -> 104777.2212 | P134: =INDEX(Prop2020DistTar!$F$31:$F$51,P$32) -> 40641.85905 | Q134: =INDEX(Prop2020DistTar!$F$31:$F$51,Q$32) -> 127399.465 | R134: =INDEX(Prop2020DistTar!$F$31:$F$51,R$32) -> 119291.8866 | S134: =INDEX(Prop2020DistTar!$F$31:$F$51,S$32) -> 341453.5896 | T134: =INDEX(Prop2020DistTar!$F$31:$F$51,T$32) -> 511890.749 | U134: =INDEX(Prop2020DistTar!$F$31:$F$51,U$32) -> 189883.5266 | V134: =INDEX(Prop2020DistTar!$F$31:$F$51,V$32) -> 547490.3545 | W134: =INDEX(Prop2020DistTar!$F$31:$F$51,W$32) -> 478141.9969
B136: Distribution revenue | C136: Fixed | D136: PkBlk1 | E136: PkBlk2 | F136: PkBlk3 | G136: PkBlk4 | H136: PkBlk5 | I136: Shd1Blk1 | J136: Shd1Blk2 | K136: Shd1Blk3 | L136: Shd1Blk4 | M136: Shd1Blk5 | N136: Shd2Blk1 | O136: Shd2Blk2 | P136: Shd2Blk3 | Q136: Shd2Blk4 | R136: Shd2Blk5 | S136: OPkBlk1 | T136: OPkBlk2 | U136: OPkBlk3 | V136: OPkBlk4 | W136: OPkBlk5
B138: =B132 -> Existing (1 Jan - 31 Dec): Tariff V - Multinet Non-Residential | C138: =INDEX(Prop2020DistTar!$H$31:$H$51,C$33) -> 1723460.759 | D138: =INDEX(Prop2020DistTar!$H$31:$H$51,D$33) -> 1176479.139 | E138: =INDEX(Prop2020DistTar!$H$31:$H$51,E$33) -> 1163597.539 | F138: =INDEX(Prop2020DistTar!$H$31:$H$51,F$33) -> 271569.3887 | G138: =INDEX(Prop2020DistTar!$H$31:$H$51,G$33) -> 501996.3624 | H138: =INDEX(Prop2020DistTar!$H$31:$H$51,H$33) -> 204835.9714 | I138: =INDEX(Prop2020DistTar!$H$31:$H$51,I$33) -> 260713.7692 | J138: =INDEX(Prop2020DistTar!$H$31:$H$51,J$33) -> 242207.4193 | K138: =INDEX(Prop2020DistTar!$H$31:$H$51,K$33) -> 58785.46147 | L138: =INDEX(Prop2020DistTar!$H$31:$H$51,L$33) -> 109140.8587 | M138: =INDEX(Prop2020DistTar!$H$31:$H$51,M$33) -> 35065.05955 | N138: =INDEX(Prop2020DistTar!$H$31:$H$51,N$33) -> 241537.4679 | O138: =INDEX(Prop2020DistTar!$H$31:$H$51,O$33) -> 218020.4419 | P138: =INDEX(Prop2020DistTar!$H$31:$H$51,P$33) -> 53553.77767 | Q138: =INDEX(Prop2020DistTar!$H$31:$H$51,Q$33) -> 95817.13762 | R138: =INDEX(Prop2020DistTar!$H$31:$H$51,R$33) -> 27628.00093 | S138: =INDEX(Prop2020DistTar!$H$31:$H$51,S$33) -> 1086056.635 | T138: =INDEX(Prop2020DistTar!$H$31:$H$51,T$33) -> 1028439.704 | U138: =INDEX(Prop2020DistTar!$H$31:$H$51,U$33) -> 228353.929 | V138: =INDEX(Prop2020DistTar!$H$31:$H$51,V$33) -> 399010.9704 | W138: =INDEX(Prop2020DistTar!$H$31:$H$51,W$33) -> 98401.62296
B140: =B134 -> Proposed (1 Jan-31 Dec): Tariff V - Multinet Non-Residential | C140: =INDEX(Prop2020DistTar!$G$31:$G$51,C$32) -> 1750725.201 | D140: =INDEX(Prop2020DistTar!$G$31:$G$51,D$32) -> 1230211.561 | E140: =INDEX(Prop2020DistTar!$G$31:$G$51,E$32) -> 1182120.071 | F140: =INDEX(Prop2020DistTar!$G$31:$G$51,F$32) -> 275896.1737 | G140: =INDEX(Prop2020DistTar!$G$31:$G$51,G$32) -> 509995.5271 | H140: =INDEX(Prop2020DistTar!$G$31:$G$51,H$32) -> 208096.1713 | I140: =INDEX(Prop2020DistTar!$G$31:$G$51,I$32) -> 272627.7076 | J140: =INDEX(Prop2020DistTar!$G$31:$G$51,J$32) -> 246060.2959 | K140: =INDEX(Prop2020DistTar!$G$31:$G$51,K$32) -> 59722.31712 | L140: =INDEX(Prop2020DistTar!$G$31:$G$51,L$32) -> 110882.2366 | M140: =INDEX(Prop2020DistTar!$G$31:$G$51,M$32) -> 35625.25264 | N140: =INDEX(Prop2020DistTar!$G$31:$G$51,N$32) -> 252575.0995 | O140: =INDEX(Prop2020DistTar!$G$31:$G$51,O$32) -> 221488.568 | P140: =INDEX(Prop2020DistTar!$G$31:$G$51,P$32) -> 54407.25671 | Q140: =INDEX(Prop2020DistTar!$G$31:$G$51,Q$32) -> 97345.9312 | R140: =INDEX(Prop2020DistTar!$G$31:$G$51,R$32) -> 28069.38091 | S140: =INDEX(Prop2020DistTar!$G$31:$G$51,S$32) -> 1135690.08 | T140: =INDEX(Prop2020DistTar!$G$31:$G$51,T$32) -> 1044820.208 | U140: =INDEX(Prop2020DistTar!$G$31:$G$51,U$32) -> 231999.6928 | V140: =INDEX(Prop2020DistTar!$G$31:$G$51,V$32) -> 405361.8585 | W140: =INDEX(Prop2020DistTar!$G$31:$G$51,W$32) -> 99979.49155
B142: Revenue | C142: Total
B143: =B138 -> Existing (1 Jan - 31 Dec): Tariff V - Multinet Non-Residential | C143: =SUM(C137:W138) -> 9224671.415
B144: =B140 -> Proposed (1 Jan-31 Dec): Tariff V - Multinet Non-Residential | C144: =SUM(C139:W140) -> 9453700.082
B146: Average price movement | C146: =IF(C144=0,"",C144/C143) -> 1.02482784
B148: =IF(C146="","",IF(C146<=$C$13,"REBALANCING CONTROL COMPLIANT","REBALANCING CONTROL BREACHED")) -> REBALANCING CONTROL COMPLIANT
B152: =Prop2020DistTar!B75 -> Tariff V - Yarra Valley Non-Residential | C152: 1 | D152: 2 | E152: 3 | F152: 4 | G152: 5 | S152: 6 | T152: 7 | U152: 8 | V152: 9
C153: 1 | D153: 2 | E153: 3 | F153: 4 | G153: 5 | H153: 6 | I153: 7 | J153: 8 | K153: 9 | L153: 10 | M153: 11 | S153: 12 | T153: 13 | U153: 14 | V153: 15 | W153: 16
B154: Distribution tariff | C154: Fixed | D154: PkBlk1 | E154: PkBlk2 | F154: PkBlk3 | G154: PkBlk4 | H154: PkBlk5 | I154: Shd1Blk1 | J154: Shd1Blk2 | K154: Shd1Blk3 | L154: Shd1Blk4 | M154: Shd1Blk5 | N154: Shd2Blk1 | O154: Shd2Blk2 | P154: Shd2Blk3 | Q154: Shd2Blk4 | R154: Shd2Blk5 | S154: OPkBlk1 | T154: OPkBlk2 | U154: OPkBlk3 | V154: OPkBlk4 | W154: OPkBlk5
B156: ="Existing (1 Jan - 31 Dec): "&Prop2020DistTar!C75 -> Existing (1 Jan - 31 Dec): Tariff V - Yarra Valley Non-Residential | C156: =INDEX(Prop2020DistTar!$E$77:$E$97,C$33) -> 0.2957 | D156: =INDEX(Prop2020DistTar!$E$77:$E$97,D$33) -> 6.414203736 | E156: =INDEX(Prop2020DistTar!$E$77:$E$97,E$33) -> 5.0396 | F156: =INDEX(Prop2020DistTar!$E$77:$E$97,F$33) -> 4.2872 | G156: =INDEX(Prop2020DistTar!$E$77:$E$97,G$33) -> 3.7865 | H156: =INDEX(Prop2020DistTar!$E$77:$E$97,H$33) -> 3.3678 | I156: =INDEX(Prop2020DistTar!$E$77:$E$97,I$33) -> 6.158204706 | J156: =INDEX(Prop2020DistTar!$E$77:$E$97,J$33) -> 4.8515 | K156: =INDEX(Prop2020DistTar!$E$77:$E$97,K$33) -> 4.2306 | L156: =INDEX(Prop2020DistTar!$E$77:$E$97,L$33) -> 3.7703 | M156: =INDEX(Prop2020DistTar!$E$77:$E$97,M$33) -> 3.3468 | N156: =INDEX(Prop2020DistTar!$E$77:$E$97,N$33) -> 6.158204706 | O156: =INDEX(Prop2020DistTar!$E$77:$E$97,O$33) -> 4.8515 | P156: =INDEX(Prop2020DistTar!$E$77:$E$97,P$33) -> 4.2306 | Q156: =INDEX(Prop2020DistTar!$E$77:$E$97,Q$33) -> 3.7703 | R156: =INDEX(Prop2020DistTar!$E$77:$E$97,R$33) -> 3.3468 | S156: =INDEX(Prop2020DistTar!$E$77:$E$97,S$33) -> 5.89237163 | T156: =INDEX(Prop2020DistTar!$E$77:$E$97,T$33) -> 4.7934 | U156: =INDEX(Prop2020DistTar!$E$77:$E$97,U$33) -> 4.1369 | V156: =INDEX(Prop2020DistTar!$E$77:$E$97,V$33) -> 3.7514 | W156: =INDEX(Prop2020DistTar!$E$77:$E$97,W$33) -> 3.3257
B158: ="Proposed (1 Jan-31 Dec): "&B152 -> Proposed (1 Jan-31 Dec): Tariff V - Yarra Valley Non-Residential | C158: =INDEX(Prop2020DistTar!$D$77:$D$97,C$32) -> 0.3004 | D158: =INDEX(Prop2020DistTar!$D$77:$D$97,D$32) -> 6.707260344 | E158: =INDEX(Prop2020DistTar!$D$77:$D$97,E$32) -> 5.1199 | F158: =INDEX(Prop2020DistTar!$D$77:$D$97,F$32) -> 4.3555 | G158: =INDEX(Prop2020DistTar!$D$77:$D$97,G$32) -> 3.8468 | H158: =INDEX(Prop2020DistTar!$D$77:$D$97,H$32) -> 3.4214 | I158: =INDEX(Prop2020DistTar!$D$77:$D$97,I$32) -> 6.439542215 | J158: =INDEX(Prop2020DistTar!$D$77:$D$97,J$32) -> 4.9288 | K158: =INDEX(Prop2020DistTar!$D$77:$D$97,K$32) -> 4.298 | L158: =INDEX(Prop2020DistTar!$D$77:$D$97,L$32) -> 3.8304 | M158: =INDEX(Prop2020DistTar!$D$77:$D$97,M$32) -> 3.4001 | N158: =INDEX(Prop2020DistTar!$D$77:$D$97,N$32) -> 6.439542215 | O158: =INDEX(Prop2020DistTar!$D$77:$D$97,O$32) -> 4.9288 | P158: =INDEX(Prop2020DistTar!$D$77:$D$97,P$32) -> 4.298 | Q158: =INDEX(Prop2020DistTar!$D$77:$D$97,Q$32) -> 3.8304 | R158: =INDEX(Prop2020DistTar!$D$77:$D$97,R$32) -> 3.4001 | S158: =INDEX(Prop2020DistTar!$D$77:$D$97,S$32) -> 6.161531194 | T158: =INDEX(Prop2020DistTar!$D$77:$D$97,T$32) -> 4.8698 | U158: =INDEX(Prop2020DistTar!$D$77:$D$97,U$32) -> 4.2028 | V158: =INDEX(Prop2020DistTar!$D$77:$D$97,V$32) -> 3.8112 | W158: =INDEX(Prop2020DistTar!$D$77:$D$97,W$32) -> 3.3787
B160: Distribution volumes (actual) | C160: Fixed | D160: PkBlk1 | E160: PkBlk2 | F160: PkBlk3 | G160: PkBlk4 | H160: PkBlk5 | I160: Shd1Blk1 | J160: Shd1Blk2 | K160: Shd1Blk3 | L160: Shd1Blk4 | M160: Shd1Blk5 | N160: Shd2Blk1 | O160: Shd2Blk2 | P160: Shd2Blk3 | Q160: Shd2Blk4 | R160: Shd2Blk5 | S160: OPkBlk1 | T160: OPkBlk2 | U160: OPkBlk3 | V160: OPkBlk4 | W160: OPkBlk5
B162: =B156 -> Existing (1 Jan - 31 Dec): Tariff V - Yarra Valley Non-Residential | C162: =INDEX(Prop2020DistTar!$F$77:$F$97,C$32) -> 70 | D162: =INDEX(Prop2020DistTar!$F$77:$F$97,D$32) -> 1542.69348 | E162: =INDEX(Prop2020DistTar!$F$77:$F$97,E$32) -> 2565.56781 | F162: =INDEX(Prop2020DistTar!$F$77:$F$97,F$32) -> 812.33832 | G162: =INDEX(Prop2020DistTar!$F$77:$F$97,G$32) -> 2172.70206 | H162: =INDEX(Prop2020DistTar!$F$77:$F$97,H$32) -> 8217.71339 | I162: =INDEX(Prop2020DistTar!$F$77:$F$97,I$32) -> 357.93823 | J162: =INDEX(Prop2020DistTar!$F$77:$F$97,J$32) -> 578.5833 | K162: =INDEX(Prop2020DistTar!$F$77:$F$97,K$32) -> 175.59529 | L162: =INDEX(Prop2020DistTar!$F$77:$F$97,L$32) -> 427.66824 | M162: =INDEX(Prop2020DistTar!$F$77:$F$97,M$32) -> 2089.86794 | N162: =INDEX(Prop2020DistTar!$F$77:$F$97,N$32) -> 376.4687 | O162: =INDEX(Prop2020DistTar!$F$77:$F$97,O$32) -> 512.62019 | P162: =INDEX(Prop2020DistTar!$F$77:$F$97,P$32) -> 126.52008 | Q162: =INDEX(Prop2020DistTar!$F$77:$F$97,Q$32) -> 390.21409 | R162: =INDEX(Prop2020DistTar!$F$77:$F$97,R$32) -> 599.17699 | S162: =INDEX(Prop2020DistTar!$F$77:$F$97,S$32) -> 1664.4568 | T162: =INDEX(Prop2020DistTar!$F$77:$F$97,T$32) -> 2241.63579 | U162: =INDEX(Prop2020DistTar!$F$77:$F$97,U$32) -> 578.90176 | V162: =INDEX(Prop2020DistTar!$F$77:$F$97,V$32) -> 1896.40126 | W162: =INDEX(Prop2020DistTar!$F$77:$F$97,W$32) -> 1265.9805
B164: =B158 -> Proposed (1 Jan-31 Dec): Tariff V - Yarra Valley Non-Residential | C164: =INDEX(Prop2020DistTar!$F$77:$F$97,C$32) -> 70 | D164: =INDEX(Prop2020DistTar!$F$77:$F$97,D$32) -> 1542.69348 | E164: =INDEX(Prop2020DistTar!$F$77:$F$97,E$32) -> 2565.56781 | F164: =INDEX(Prop2020DistTar!$F$77:$F$97,F$32) -> 812.33832 | G164: =INDEX(Prop2020DistTar!$F$77:$F$97,G$32) -> 2172.70206 | H164: =INDEX(Prop2020DistTar!$F$77:$F$97,H$32) -> 8217.71339 | I164: =INDEX(Prop2020DistTar!$F$77:$F$97,I$32) -> 357.93823 | J164: =INDEX(Prop2020DistTar!$F$77:$F$97,J$32) -> 578.5833 | K164: =INDEX(Prop2020DistTar!$F$77:$F$97,K$32) -> 175.59529 | L164: =INDEX(Prop2020DistTar!$F$77:$F$97,L$32) -> 427.66824 | M164: =INDEX(Prop2020DistTar!$F$77:$F$97,M$32) -> 2089.86794 | N164: =INDEX(Prop2020DistTar!$F$77:$F$97,N$32) -> 376.4687 | O164: =INDEX(Prop2020DistTar!$F$77:$F$97,O$32) -> 512.62019 | P164: =INDEX(Prop2020DistTar!$F$77:$F$97,P$32) -> 126.52008 | Q164: =INDEX(Prop2020DistTar!$F$77:$F$97,Q$32) -> 390.21409 | R164: =INDEX(Prop2020DistTar!$F$77:$F$97,R$32) -> 599.17699 | S164: =INDEX(Prop2020DistTar!$F$77:$F$97,S$32) -> 1664.4568 | T164: =INDEX(Prop2020DistTar!$F$77:$F$97,T$32) -> 2241.63579 | U164: =INDEX(Prop2020DistTar!$F$77:$F$97,U$32) -> 578.90176 | V164: =INDEX(Prop2020DistTar!$F$77:$F$97,V$32) -> 1896.40126 | W164: =INDEX(Prop2020DistTar!$F$77:$F$97,W$32) -> 1265.9805
B166: Distribution revenue | C166: Fixed | D166: PkBlk1 | E166: PkBlk2 | F166: PkBlk3 | G166: PkBlk4 | H166: PkBlk5 | I166: Shd1Blk1 | J166: Shd1Blk2 | K166: Shd1Blk3 | L166: Shd1Blk4 | M166: Shd1Blk5 | N166: Shd2Blk1 | O166: Shd2Blk2 | P166: Shd2Blk3 | Q166: Shd2Blk4 | R166: Shd2Blk5 | S166: OPkBlk1 | T166: OPkBlk2 | U166: OPkBlk3 | V166: OPkBlk4 | W166: OPkBlk5
B168: =B162 -> Existing (1 Jan - 31 Dec): Tariff V - Yarra Valley Non-Residential | C168: =INDEX(Prop2020DistTar!$H$77:$H$97,C$33) -> 7555.135 | D168: =INDEX(Prop2020DistTar!$H$77:$H$97,D$33) -> 9895.150283 | E168: =INDEX(Prop2020DistTar!$H$77:$H$97,E$33) -> 12929.43554 | F168: =INDEX(Prop2020DistTar!$H$77:$H$97,F$33) -> 3482.656846 | G168: =INDEX(Prop2020DistTar!$H$77:$H$97,G$33) -> 8226.93635 | H168: =INDEX(Prop2020DistTar!$H$77:$H$97,H$33) -> 27675.61515 | I168: =INDEX(Prop2020DistTar!$H$77:$H$97,I$33) -> 2204.256892 | J168: =INDEX(Prop2020DistTar!$H$77:$H$97,J$33) -> 2806.99688 | K168: =INDEX(Prop2020DistTar!$H$77:$H$97,K$33) -> 742.8734339 | L168: =INDEX(Prop2020DistTar!$H$77:$H$97,L$33) -> 1612.437565 | M168: =INDEX(Prop2020DistTar!$H$77:$H$97,M$33) -> 6994.370022 | N168: =INDEX(Prop2020DistTar!$H$77:$H$97,N$33) -> 2318.37132 | O168: =INDEX(Prop2020DistTar!$H$77:$H$97,O$33) -> 2486.976852 | P168: =INDEX(Prop2020DistTar!$H$77:$H$97,P$33) -> 535.2558504 | Q168: =INDEX(Prop2020DistTar!$H$77:$H$97,Q$33) -> 1471.224184 | R168: =INDEX(Prop2020DistTar!$H$77:$H$97,R$33) -> 2005.32555 | S168: =INDEX(Prop2020DistTar!$H$77:$H$97,S$33) -> 9807.598028 | T168: =INDEX(Prop2020DistTar!$H$77:$H$97,T$33) -> 10745.057 | U168: =INDEX(Prop2020DistTar!$H$77:$H$97,U$33) -> 2394.858691 | V168: =INDEX(Prop2020DistTar!$H$77:$H$97,V$33) -> 7114.159687 | W168: =INDEX(Prop2020DistTar!$H$77:$H$97,W$33) -> 4210.271349
B170: =B164 -> Proposed (1 Jan-31 Dec): Tariff V - Yarra Valley Non-Residential | C170: =INDEX(Prop2020DistTar!$G$77:$G$97,C$32) -> 7675.22 | D170: =INDEX(Prop2020DistTar!$G$77:$G$97,D$32) -> 10347.2468 | E170: =INDEX(Prop2020DistTar!$G$77:$G$97,E$32) -> 13135.45063 | F170: =INDEX(Prop2020DistTar!$G$77:$G$97,F$32) -> 3538.139553 | G170: =INDEX(Prop2020DistTar!$G$77:$G$97,G$32) -> 8357.950284 | H170: =INDEX(Prop2020DistTar!$G$77:$G$97,H$32) -> 28116.08459 | I170: =INDEX(Prop2020DistTar!$G$77:$G$97,I$32) -> 2304.958343 | J170: =INDEX(Prop2020DistTar!$G$77:$G$97,J$32) -> 2851.721369 | K170: =INDEX(Prop2020DistTar!$G$77:$G$97,K$32) -> 754.7085564 | L170: =INDEX(Prop2020DistTar!$G$77:$G$97,L$32) -> 1638.140426 | M170: =INDEX(Prop2020DistTar!$G$77:$G$97,M$32) -> 7105.759983 | N170: =INDEX(Prop2020DistTar!$G$77:$G$97,N$32) -> 2424.286086 | O170: =INDEX(Prop2020DistTar!$G$77:$G$97,O$32) -> 2526.602392 | P170: =INDEX(Prop2020DistTar!$G$77:$G$97,P$32) -> 543.7833038 | Q170: =INDEX(Prop2020DistTar!$G$77:$G$97,Q$32) -> 1494.67605 | R170: =INDEX(Prop2020DistTar!$G$77:$G$97,R$32) -> 2037.261684 | S170: =INDEX(Prop2020DistTar!$G$77:$G$97,S$32) -> 10255.60249 | T170: =INDEX(Prop2020DistTar!$G$77:$G$97,T$32) -> 10916.31797 | U170: =INDEX(Prop2020DistTar!$G$77:$G$97,U$32) -> 2433.008317 | V170: =INDEX(Prop2020DistTar!$G$77:$G$97,V$32) -> 7227.564482 | W170: =INDEX(Prop2020DistTar!$G$77:$G$97,W$32) -> 4277.368315
B172: Revenue | C172: Total
B173: =B168 -> Existing (1 Jan - 31 Dec): Tariff V - Yarra Valley Non-Residential | C173: =SUM(C167:W168) -> 127214.9625
B174: =B170 -> Proposed (1 Jan-31 Dec): Tariff V - Yarra Valley Non-Residential | C174: =SUM(C169:W170) -> 129961.8516
B176: Average price movement | C176: =IF(C174=0,"",C174/C173) -> 1.021592501
B178: =IF(C176="","",IF(C176<=$C$13,"REBALANCING CONTROL COMPLIANT","REBALANCING CONTROL BREACHED")) -> REBALANCING CONTROL COMPLIANT
B182: =Prop2020DistTar!B121 -> Tariff V - South Gippsland Non-Residential | C182: 1 | D182: 2 | E182: 3 | F182: 4 | G182: 5 | S182: 6 | T182: 7 | U182: 8 | V182: 9
C183: 1 | D183: 2 | E183: 3 | F183: 4 | G183: 5 | H183: 6 | I183: 7 | J183: 8 | K183: 9 | L183: 10 | M183: 11 | S183: 12 | T183: 13 | U183: 14 | V183: 15 | W183: 16
B184: Distribution tariff | C184: Fixed | D184: PkBlk1 | E184: PkBlk2 | F184: PkBlk3 | G184: PkBlk4 | H184: PkBlk5 | I184: Shd1Blk1 | J184: Shd1Blk2 | K184: Shd1Blk3 | L184: Shd1Blk4 | M184: Shd1Blk5 | N184: Shd2Blk1 | O184: Shd2Blk2 | P184: Shd2Blk3 | Q184: Shd2Blk4 | R184: Shd2Blk5 | S184: OPkBlk1 | T184: OPkBlk2 | U184: OPkBlk3 | V184: OPkBlk4 | W184: OPkBlk5
B186: ="Existing (1 Jan - 31 Dec): "&Prop2020DistTar!C121 -> Existing (1 Jan - 31 Dec): Tariff V - South Gippsland Non-Residential | C186: =INDEX(Prop2020DistTar!$E$123:$E$143,C$33) -> 0.2971 | D186: =INDEX(Prop2020DistTar!$E$123:$E$143,D$33) -> 7.074654033 | E186: =INDEX(Prop2020DistTar!$E$123:$E$143,E$33) -> 5.6034 | F186: =INDEX(Prop2020DistTar!$E$123:$E$143,F$33) -> 4.8042 | G186: =INDEX(Prop2020DistTar!$E$123:$E$143,G$33) -> 4.2727 | H186: =INDEX(Prop2020DistTar!$E$123:$E$143,H$33) -> 3.828 | I186: =INDEX(Prop2020DistTar!$E$123:$E$143,I$33) -> 6.80285776 | J186: =INDEX(Prop2020DistTar!$E$123:$E$143,J$33) -> 5.4035 | K186: =INDEX(Prop2020DistTar!$E$123:$E$143,K$33) -> 4.7443 | L186: =INDEX(Prop2020DistTar!$E$123:$E$143,L$33) -> 4.2554 | M186: =INDEX(Prop2020DistTar!$E$123:$E$143,M$33) -> 3.8056 | N186: =INDEX(Prop2020DistTar!$E$123:$E$143,N$33) -> 6.80285776 | O186: =INDEX(Prop2020DistTar!$E$123:$E$143,O$33) -> 5.4035 | P186: =INDEX(Prop2020DistTar!$E$123:$E$143,P$33) -> 4.7443 | Q186: =INDEX(Prop2020DistTar!$E$123:$E$143,Q$33) -> 4.2554 | R186: =INDEX(Prop2020DistTar!$E$123:$E$143,R$33) -> 3.8056 | S186: =INDEX(Prop2020DistTar!$E$123:$E$143,S$33) -> 6.520599737 | T186: =INDEX(Prop2020DistTar!$E$123:$E$143,T$33) -> 5.3418 | U186: =INDEX(Prop2020DistTar!$E$123:$E$143,U$33) -> 4.6446 | V186: =INDEX(Prop2020DistTar!$E$123:$E$143,V$33) -> 4.2353 | W186: =INDEX(Prop2020DistTar!$E$123:$E$143,W$33) -> 3.7833
B188: ="Proposed (1 Jan-31 Dec): "&B182 -> Proposed (1 Jan-31 Dec): Tariff V - South Gippsland Non-Residential | C188: =INDEX(Prop2020DistTar!$D$123:$D$143,C$32) -> 0.3018 | D188: =INDEX(Prop2020DistTar!$D$123:$D$143,D$32) -> 7.397810489 | E188: =INDEX(Prop2020DistTar!$D$123:$D$143,E$32) -> 5.6927 | F188: =INDEX(Prop2020DistTar!$D$123:$D$143,F$32) -> 4.8807 | G188: =INDEX(Prop2020DistTar!$D$123:$D$143,G$32) -> 4.3408 | H188: =INDEX(Prop2020DistTar!$D$123:$D$143,H$32) -> 3.889 | I188: =INDEX(Prop2020DistTar!$D$123:$D$143,I$32) -> 7.113623733 | J188: =INDEX(Prop2020DistTar!$D$123:$D$143,J$32) -> 5.4896 | K188: =INDEX(Prop2020DistTar!$D$123:$D$143,K$32) -> 4.8199 | L188: =INDEX(Prop2020DistTar!$D$123:$D$143,L$32) -> 4.3232 | M188: =INDEX(Prop2020DistTar!$D$123:$D$143,M$32) -> 3.8662 | N188: =INDEX(Prop2020DistTar!$D$123:$D$143,N$32) -> 7.113623733 | O188: =INDEX(Prop2020DistTar!$D$123:$D$143,O$32) -> 5.4896 | P188: =INDEX(Prop2020DistTar!$D$123:$D$143,P$32) -> 4.8199 | Q188: =INDEX(Prop2020DistTar!$D$123:$D$143,Q$32) -> 4.3232 | R188: =INDEX(Prop2020DistTar!$D$123:$D$143,R$32) -> 3.8662 | S188: =INDEX(Prop2020DistTar!$D$123:$D$143,S$32) -> 6.81852651 | T188: =INDEX(Prop2020DistTar!$D$123:$D$143,T$32) -> 5.4269 | U188: =INDEX(Prop2020DistTar!$D$123:$D$143,U$32) -> 4.7186 | V188: =INDEX(Prop2020DistTar!$D$123:$D$143,V$32) -> 4.3028 | W188: =INDEX(Prop2020DistTar!$D$123:$D$143,W$32) -> 3.8436
B190: Distribution volumes (actual) | C190: Fixed | D190: PkBlk1 | E190: PkBlk2 | F190: PkBlk3 | G190: PkBlk4 | H190: PkBlk5 | I190: Shd1Blk1 | J190: Shd1Blk2 | K190: Shd1Blk3 | L190: Shd1Blk4 | M190: Shd1Blk5 | N190: Shd2Blk1 | O190: Shd2Blk2 | P190: Shd2Blk3 | Q190: Shd2Blk4 | R190: Shd2Blk5 | S190: OPkBlk1 | T190: OPkBlk2 | U190: OPkBlk3 | V190: OPkBlk4 | W190: OPkBlk5
B192: =B186 -> Existing (1 Jan - 31 Dec): Tariff V - South Gippsland Non-Residential | C192: =INDEX(Prop2020DistTar!$F$123:$F$143,C$32) -> 112 | D192: =INDEX(Prop2020DistTar!$F$123:$F$143,D$32) -> 2428.16118 | E192: =INDEX(Prop2020DistTar!$F$123:$F$143,E$32) -> 4550.35041 | F192: =INDEX(Prop2020DistTar!$F$123:$F$143,F$32) -> 2154.0236 | G192: =INDEX(Prop2020DistTar!$F$123:$F$143,G$32) -> 8849.64413 | H192: =INDEX(Prop2020DistTar!$F$123:$F$143,H$32) -> 13120.50102 | I192: =INDEX(Prop2020DistTar!$F$123:$F$143,I$32) -> 572.76758 | J192: =INDEX(Prop2020DistTar!$F$123:$F$143,J$32) -> 1090.40864 | K192: =INDEX(Prop2020DistTar!$F$123:$F$143,K$32) -> 513.6815 | L192: =INDEX(Prop2020DistTar!$F$123:$F$143,L$32) -> 2056.15032 | M192: =INDEX(Prop2020DistTar!$F$123:$F$143,M$32) -> 2889.35777 | N192: =INDEX(Prop2020DistTar!$F$123:$F$143,N$32) -> 554.19888 | O192: =INDEX(Prop2020DistTar!$F$123:$F$143,O$32) -> 1052.26872 | P192: =INDEX(Prop2020DistTar!$F$123:$F$143,P$32) -> 482.43288 | Q192: =INDEX(Prop2020DistTar!$F$123:$F$143,Q$32) -> 1964.6681 | R192: =INDEX(Prop2020DistTar!$F$123:$F$143,R$32) -> 2202.79628 | S192: =INDEX(Prop2020DistTar!$F$123:$F$143,S$32) -> 2968.22252 | T192: =INDEX(Prop2020DistTar!$F$123:$F$143,T$32) -> 5770.23725 | U192: =INDEX(Prop2020DistTar!$F$123:$F$143,U$32) -> 2611.91204 | V192: =INDEX(Prop2020DistTar!$F$123:$F$143,V$32) -> 8567.82512 | W192: =INDEX(Prop2020DistTar!$F$123:$F$143,W$32) -> 8087.84324
B194: =B188 -> Proposed (1 Jan-31 Dec): Tariff V - South Gippsland Non-Residential | C194: =INDEX(Prop2020DistTar!$F$123:$F$143,C$32) -> 112 | D194: =INDEX(Prop2020DistTar!$F$123:$F$143,D$32) -> 2428.16118 | E194: =INDEX(Prop2020DistTar!$F$123:$F$143,E$32) -> 4550.35041 | F194: =INDEX(Prop2020DistTar!$F$123:$F$143,F$32) -> 2154.0236 | G194: =INDEX(Prop2020DistTar!$F$123:$F$143,G$32) -> 8849.64413 | H194: =INDEX(Prop2020DistTar!$F$123:$F$143,H$32) -> 13120.50102 | I194: =INDEX(Prop2020DistTar!$F$123:$F$143,I$32) -> 572.76758 | J194: =INDEX(Prop2020DistTar!$F$123:$F$143,J$32) -> 1090.40864 | K194: =INDEX(Prop2020DistTar!$F$123:$F$143,K$32) -> 513.6815 | L194: =INDEX(Prop2020DistTar!$F$123:$F$143,L$32) -> 2056.15032 | M194: =INDEX(Prop2020DistTar!$F$123:$F$143,M$32) -> 2889.35777 | N194: =INDEX(Prop2020DistTar!$F$123:$F$143,N$32) -> 554.19888 | O194: =INDEX(Prop2020DistTar!$F$123:$F$143,O$32) -> 1052.26872 | P194: =INDEX(Prop2020DistTar!$F$123:$F$143,P$32) -> 482.43288 | Q194: =INDEX(Prop2020DistTar!$F$123:$F$143,Q$32) -> 1964.6681 | R194: =INDEX(Prop2020DistTar!$F$123:$F$143,R$32) -> 2202.79628 | S194: =INDEX(Prop2020DistTar!$F$123:$F$143,S$32) -> 2968.22252 | T194: =INDEX(Prop2020DistTar!$F$123:$F$143,T$32) -> 5770.23725 | U194: =INDEX(Prop2020DistTar!$F$123:$F$143,U$32) -> 2611.91204 | V194: =INDEX(Prop2020DistTar!$F$123:$F$143,V$32) -> 8567.82512 | W194: =INDEX(Prop2020DistTar!$F$123:$F$143,W$32) -> 8087.84324
B196: Distribution revenue | C196: Fixed | D196: PkBlk1 | E196: PkBlk2 | F196: PkBlk3 | G196: PkBlk4 | H196: PkBlk5 | I196: Shd1Blk1 | J196: Shd1Blk2 | K196: Shd1Blk3 | L196: Shd1Blk4 | M196: Shd1Blk5 | N196: Shd2Blk1 | O196: Shd2Blk2 | P196: Shd2Blk3 | Q196: Shd2Blk4 | R196: Shd2Blk5 | S196: OPkBlk1 | T196: OPkBlk2 | U196: OPkBlk3 | V196: OPkBlk4 | W196: OPkBlk5
B198: =B192 -> Existing (1 Jan - 31 Dec): Tariff V - South Gippsland Non-Residential | C198: =INDEX(Prop2020DistTar!$H$123:$H$143,C$33) -> 12145.448 | D198: =INDEX(Prop2020DistTar!$H$123:$H$143,D$33) -> 17178.40029 | E198: =INDEX(Prop2020DistTar!$H$123:$H$143,E$33) -> 25497.43349 | F198: =INDEX(Prop2020DistTar!$H$123:$H$143,F$33) -> 10348.36018 | G198: =INDEX(Prop2020DistTar!$H$123:$H$143,G$33) -> 37811.87447 | H198: =INDEX(Prop2020DistTar!$H$123:$H$143,H$33) -> 50225.2779 | I198: =INDEX(Prop2020DistTar!$H$123:$H$143,I$33) -> 3896.456376 | J198: =INDEX(Prop2020DistTar!$H$123:$H$143,J$33) -> 5892.023086 | K198: =INDEX(Prop2020DistTar!$H$123:$H$143,K$33) -> 2437.05914 | L198: =INDEX(Prop2020DistTar!$H$123:$H$143,L$33) -> 8749.742072 | M198: =INDEX(Prop2020DistTar!$H$123:$H$143,M$33) -> 10995.73993 | N198: =INDEX(Prop2020DistTar!$H$123:$H$143,N$33) -> 3770.136151 | O198: =INDEX(Prop2020DistTar!$H$123:$H$143,O$33) -> 5685.934029 | P198: =INDEX(Prop2020DistTar!$H$123:$H$143,P$33) -> 2288.806313 | Q198: =INDEX(Prop2020DistTar!$H$123:$H$143,Q$33) -> 8360.448633 | R198: =INDEX(Prop2020DistTar!$H$123:$H$143,R$33) -> 8382.961523 | S198: =INDEX(Prop2020DistTar!$H$123:$H$143,S$33) -> 19354.59098 | T198: =INDEX(Prop2020DistTar!$H$123:$H$143,T$33) -> 30823.45334 | U198: =INDEX(Prop2020DistTar!$H$123:$H$143,U$33) -> 12131.28666 | V198: =INDEX(Prop2020DistTar!$H$123:$H$143,V$33) -> 36287.30973 | W198: =INDEX(Prop2020DistTar!$H$123:$H$143,W$33) -> 30598.73733
B200: =B194 -> Proposed (1 Jan-31 Dec): Tariff V - South Gippsland Non-Residential | C200: =INDEX(Prop2020DistTar!$G$123:$G$143,C$32) -> 12337.584 | D200: =INDEX(Prop2020DistTar!$G$123:$G$143,D$32) -> 17963.07625 | E200: =INDEX(Prop2020DistTar!$G$123:$G$143,E$32) -> 25903.77978 | F200: =INDEX(Prop2020DistTar!$G$123:$G$143,F$32) -> 10513.14298 | G200: =INDEX(Prop2020DistTar!$G$123:$G$143,G$32) -> 38414.53524 | H200: =INDEX(Prop2020DistTar!$G$123:$G$143,H$32) -> 51025.62847 | I200: =INDEX(Prop2020DistTar!$G$123:$G$143,I$32) -> 4074.45305 | J200: =INDEX(Prop2020DistTar!$G$123:$G$143,J$32) -> 5985.90727 | K200: =INDEX(Prop2020DistTar!$G$123:$G$143,K$32) -> 2475.893462 | L200: =INDEX(Prop2020DistTar!$G$123:$G$143,L$32) -> 8889.149063 | M200: =INDEX(Prop2020DistTar!$G$123:$G$143,M$32) -> 11170.83501 | N200: =INDEX(Prop2020DistTar!$G$123:$G$143,N$32) -> 3942.362305 | O200: =INDEX(Prop2020DistTar!$G$123:$G$143,O$32) -> 5776.534365 | P200: =INDEX(Prop2020DistTar!$G$123:$G$143,P$32) -> 2325.278238 | Q200: =INDEX(Prop2020DistTar!$G$123:$G$143,Q$32) -> 8493.65313 | R200: =INDEX(Prop2020DistTar!$G$123:$G$143,R$32) -> 8516.450978 | S200: =INDEX(Prop2020DistTar!$G$123:$G$143,S$32) -> 20238.90394 | T200: =INDEX(Prop2020DistTar!$G$123:$G$143,T$32) -> 31314.50053 | U200: =INDEX(Prop2020DistTar!$G$123:$G$143,U$32) -> 12324.56815 | V200: =INDEX(Prop2020DistTar!$G$123:$G$143,V$32) -> 36865.63793 | W200: =INDEX(Prop2020DistTar!$G$123:$G$143,W$32) -> 31086.43428
B202: Revenue | C202: Total
B203: =B198 -> Existing (1 Jan - 31 Dec): Tariff V - South Gippsland Non-Residential | C203: =SUM(C197:W198) -> 342861.4796
B204: =B200 -> Proposed (1 Jan-31 Dec): Tariff V - South Gippsland Non-Residential | C204: =SUM(C199:W200) -> 349638.3084
B206: Average price movement | C206: =IF(C204=0,"",C204/C203) -> 1.019765501
B208: =IF(C206="","",IF(C206<=$C$13,"REBALANCING CONTROL COMPLIANT","REBALANCING CONTROL BREACHED")) -> REBALANCING CONTROL COMPLIANT
B212: =Prop2020DistTar!B145 -> Tariff D - Multinet
C213: 1 | D213: 2
B214: Distribution tariff | C214: DemBlk1 | D214: DemBlk2
B215: ="Existing: "&Prop2020DistTar!C145 -> Existing: Tariff D - Multinet | C215: =INDEX(Prop2020DistTar!$E$146:$E$147,C213) -> 579.1926 | D215: =INDEX(Prop2020DistTar!$E$146:$E$147,D213) -> 98.5447
B216: ="Proposed: "&B212 -> Proposed: Tariff D - Multinet | C216: =INDEX(Prop2020DistTar!$D$146:$D$147,C213) -> 595.3247 | D216: =INDEX(Prop2020DistTar!$D$146:$D$147,D213) -> 101.2894
B218: Distribution volumes (actual) | C218: DemBlk1 | D218: DemBlk2
B219: =B215 -> Existing: Tariff D - Multinet | C219: =INDEX(Prop2020DistTar!$F$146:$F$147,C$213) -> 3277.68 | D219: =INDEX(Prop2020DistTar!$F$146:$F$147,D$213) -> 461.1
B220: =B216 -> Proposed: Tariff D - Multinet | C220: =INDEX(Prop2020DistTar!$F$146:$F$147,C$213) -> 3277.68 | D220: =INDEX(Prop2020DistTar!$F$146:$F$147,D$213) -> 461.1
B222: Distribution revenue | C222: DemBlk1 | D222: DemBlk2
B223: =B219 -> Existing: Tariff D - Multinet | C223: =INDEX(Prop2020DistTar!$H$146:$H$147,C213) -> 1898408.001 | D223: =INDEX(Prop2020DistTar!$H$146:$H$147,D213) -> 45438.96117
B224: =B220 -> Proposed: Tariff D - Multinet | C224: =INDEX(Prop2020DistTar!$G$146:$G$147,C213) -> 1951283.863 | D224: =INDEX(Prop2020DistTar!$G$146:$G$147,D213) -> 46704.54234
B226: Revenue | C226: Total
B227: =B223 -> Existing: Tariff D - Multinet | C227: =SUM(C223:D223) -> 1943846.962
B228: =B224 -> Proposed: Tariff D - Multinet | C228: =SUM(C224:D224) -> 1997988.405
B230: Average price movement | C230: =IF(C228=0,"",C228/C227) -> 1.027852729
B232: =IF(C230="","",IF(C230<=$C$13,"REBALANCING CONTROL COMPLIANT","REBALANCING CONTROL BREACHED")) -> REBALANCING CONTROL COMPLIANT
B235: =Prop2020DistTar!B149 -> New Tariff L- Multinet Non-Residential | C235: 1 | D235: 2 | E235: 3 | F235: 4 | G235: 5
C236: 1 | D236: 2 | E236: 3 | I236: 4 | J236: 5 | N236: 6
B237: Distribution tariff | C237: Fixed | D237: PkBlk1 | E237: PkBlk2 | F237: Shd1Blk1 | G237: Shd1Blk2 | H237: Shd2Blk1 | I237: Shd2Blk2 | J237: OffPkBlk1 | K237: OffPkBlk2 | M237: Rolling12 | N237: PD
B239: ="Existing (1 Jan - 31 Dec): "&Prop2020DistTar!C149 -> Existing (1 Jan - 31 Dec): New Tariff L- Multinet Non-Residential | C239: =INDEX(Prop2020DistTar!$E$151:$E$162,C$33) -> 0 | D239: =INDEX(Prop2020DistTar!$E$151:$E$162,D$33) -> 0.6204 | E239: =INDEX(Prop2020DistTar!$E$151:$E$162,E$33) -> 0.1331 | F239: =INDEX(Prop2020DistTar!$E$151:$E$162,F$33) -> 0.5501 | G239: =INDEX(Prop2020DistTar!$E$151:$E$162,G$33) -> 0.1249 | H239: =INDEX(Prop2020DistTar!$E$151:$E$162,H$33) -> 0.5501 | I239: =INDEX(Prop2020DistTar!$E$151:$E$162,I$33) -> 0.1249 | J239: =INDEX(Prop2020DistTar!$E$151:$E$162,J$33) -> 0.4362 | K239: =INDEX(Prop2020DistTar!$E$151:$E$162,K$33) -> 0.0992 | L239: =INDEX(Prop2020DistTar!$E$151:$E$162,L$33) -> 0 | M239: =INDEX(Prop2020DistTar!$E$151:$E$162,M$33) -> 0.5768 | N239: =INDEX(Prop2020DistTar!$E$151:$E$162,N$33) -> 1.7258
B241: ="Proposed (1 Jan-31 Dec): "&B235 -> Proposed (1 Jan-31 Dec): New Tariff L- Multinet Non-Residential | C241: =INDEX(Prop2020DistTar!$D$151:$D$162,C$33) -> 0 | D241: =INDEX(Prop2020DistTar!$D$151:$D$162,D$33) -> 0.6377 | E241: =INDEX(Prop2020DistTar!$D$151:$D$162,E$33) -> 0.1368 | F241: =INDEX(Prop2020DistTar!$D$151:$D$162,F$33) -> 0.5654 | G241: =INDEX(Prop2020DistTar!$D$151:$D$162,G$33) -> 0.1284 | H241: =INDEX(Prop2020DistTar!$D$151:$D$162,H$33) -> 0.5654 | I241: =INDEX(Prop2020DistTar!$D$151:$D$162,I$33) -> 0.1284 | J241: =INDEX(Prop2020DistTar!$D$151:$D$162,J$33) -> 0.4483 | K241: =INDEX(Prop2020DistTar!$D$151:$D$162,K$33) -> 0.102 | L241: =INDEX(Prop2020DistTar!$D$151:$D$162,L$33) -> 0 | M241: =INDEX(Prop2020DistTar!$D$151:$D$162,M$33) -> 0.5929 | N241: =INDEX(Prop2020DistTar!$D$151:$D$162,N$33) -> 1.7739
B243: Distribution volumes (actual) | C243: Fixed | D243: PkBlk1 | E243: PkBlk2 | F243: Shd1Blk1 | G243: Shd1Blk2 | H243: Shd2Blk1 | I243: Shd2Blk2 | J243: OffPkBlk1 | K243: OffPkBlk2 | M243: Rolling12 | N243: PD
B245: =B239 -> Existing (1 Jan - 31 Dec): New Tariff L- Multinet Non-Residential | C245: =INDEX(Prop2020DistTar!$F$151:$F$162,C$33) -> 13 | D245: =INDEX(Prop2020DistTar!$F$151:$F$162,D$33) -> 6384.22 | E245: =INDEX(Prop2020DistTar!$F$151:$F$162,E$33) -> 29560.4 | F245: =INDEX(Prop2020DistTar!$F$151:$F$162,F$33) -> 1687.98 | G245: =INDEX(Prop2020DistTar!$F$151:$F$162,G$33) -> 5645.96 | H245: =INDEX(Prop2020DistTar!$F$151:$F$162,H$33) -> 1591.26 | I245: =INDEX(Prop2020DistTar!$F$151:$F$162,I$33) -> 4686.55 | J245: =INDEX(Prop2020DistTar!$F$151:$F$162,J$33) -> 8366.93 | K245: =INDEX(Prop2020DistTar!$F$151:$F$162,K$33) -> 16302.87 | L245: =INDEX(Prop2020DistTar!$F$151:$F$162,L$33) -> 0 | M245: =INDEX(Prop2020DistTar!$F$151:$F$162,M$33) -> 43.2 | N245: =INDEX(Prop2020DistTar!$F$151:$F$162,N$33) -> 34.8
B247: =B241 -> Proposed (1 Jan-31 Dec): New Tariff L- Multinet Non-Residential | C247: =INDEX(Prop2020DistTar!$F$151:$F$162,C$33) -> 13 | D247: =INDEX(Prop2020DistTar!$F$151:$F$162,D$33) -> 6384.22 | E247: =INDEX(Prop2020DistTar!$F$151:$F$162,E$33) -> 29560.4 | F247: =INDEX(Prop2020DistTar!$F$151:$F$162,F$33) -> 1687.98 | G247: =INDEX(Prop2020DistTar!$F$151:$F$162,G$33) -> 5645.96 | H247: =INDEX(Prop2020DistTar!$F$151:$F$162,H$33) -> 1591.26 | I247: =INDEX(Prop2020DistTar!$F$151:$F$162,I$33) -> 4686.55 | J247: =INDEX(Prop2020DistTar!$F$151:$F$162,J$33) -> 8366.93 | K247: =INDEX(Prop2020DistTar!$F$151:$F$162,K$33) -> 16302.87 | L247: =INDEX(Prop2020DistTar!$F$151:$F$162,L$33) -> 0 | M247: =INDEX(Prop2020DistTar!$F$151:$F$162,M$33) -> 43.2 | N247: =INDEX(Prop2020DistTar!$F$151:$F$162,N$33) -> 34.8
B249: Distribution revenue | C249: Fixed | D249: PkBlk1 | E249: PkBlk2 | F249: Shd1Blk1 | G249: Shd1Blk2 | H249: Shd2Blk1 | I249: Shd2Blk2 | J249: OffPkBlk1 | K249: OffPkBlk2 | M249: Rolling12 | N249: PD
B251: =B245 -> Existing (1 Jan - 31 Dec): New Tariff L- Multinet Non-Residential | C251: =INDEX(Prop2020DistTar!$H$151:$H$162,C$33) -> 0 | D251: =INDEX(Prop2020DistTar!$H$151:$H$162,D$33) -> 3960.770088 | E251: =INDEX(Prop2020DistTar!$H$151:$H$162,E$33) -> 3934.48924 | F251: =INDEX(Prop2020DistTar!$H$151:$H$162,F$33) -> 928.557798 | G251: =INDEX(Prop2020DistTar!$H$151:$H$162,G$33) -> 705.180404 | H251: =INDEX(Prop2020DistTar!$H$151:$H$162,H$33) -> 875.352126 | I251: =INDEX(Prop2020DistTar!$H$151:$H$162,I$33) -> 585.350095 | J251: =INDEX(Prop2020DistTar!$H$151:$H$162,J$33) -> 3649.654866 | K251: =INDEX(Prop2020DistTar!$H$151:$H$162,K$33) -> 1617.244704 | L251: =INDEX(Prop2020DistTar!$H$151:$H$162,L$33) -> 0 | M251: =INDEX(Prop2020DistTar!$H$151:$H$162,M$33) -> 9094.9824 | N251: =INDEX(Prop2020DistTar!$H$151:$H$162,N$33) -> 7327.05648
B253: =B247 -> Proposed (1 Jan-31 Dec): New Tariff L- Multinet Non-Residential | C253: =INDEX(Prop2020DistTar!$G$151:$G$162,C$33) -> 0 | D253: =INDEX(Prop2020DistTar!$G$151:$G$162,D$33) -> 4071.217094 | E253: =INDEX(Prop2020DistTar!$G$151:$G$162,E$33) -> 4043.86272 | F253: =INDEX(Prop2020DistTar!$G$151:$G$162,F$33) -> 954.383892 | G253: =INDEX(Prop2020DistTar!$G$151:$G$162,G$33) -> 724.941264 | H253: =INDEX(Prop2020DistTar!$G$151:$G$162,H$33) -> 899.698404 | I253: =INDEX(Prop2020DistTar!$G$151:$G$162,I$33) -> 601.75302 | J253: =INDEX(Prop2020DistTar!$G$151:$G$162,J$33) -> 3750.894719 | K253: =INDEX(Prop2020DistTar!$G$151:$G$162,K$33) -> 1662.89274 | L253: =INDEX(Prop2020DistTar!$G$151:$G$162,L$33) -> 0 | M253: =INDEX(Prop2020DistTar!$G$151:$G$162,M$33) -> 9348.8472 | N253: =INDEX(Prop2020DistTar!$G$151:$G$162,N$33) -> 7531.26984
B255: Revenue | C255: Total
B256: =B251 -> Existing (1 Jan - 31 Dec): New Tariff L- Multinet Non-Residential | C256: =SUM(C251:N251) -> 32678.6382
B257: =B253 -> Proposed (1 Jan-31 Dec): New Tariff L- Multinet Non-Residential | C257: =SUM(C253:N253) -> 33589.76089
B259: Average price movement | C259: =IF(C257=0,"",C257/C256) -> 1.027881293
B261: =IF(C259="","",IF(C259<=$C$13,"REBALANCING CONTROL COMPLIANT","REBALANCING CONTROL BREACHED")) -> REBALANCING CONTROL COMPLIANT
B265: =Prop2020DistTar!B163 -> Tariff D - Multinet South Gippsland
C266: 1 | D266: 2
B267: Distribution tariff | C267: DemBlk1 | D267: DemBlk2
B268: ="Existing: "&Prop2020DistTar!C163 -> Existing: Tariff D - Multinet South Gippsland | C268: =INDEX(Prop2020DistTar!$E$164:$E$165,C266) -> 625.7664 | D268: =INDEX(Prop2020DistTar!$E$164:$E$165,D266) -> 106.4624
B269: ="Proposed: "&B265 -> Proposed: Tariff D - Multinet South Gippsland | C269: =INDEX(Prop2020DistTar!$D$164:$D$165,C266) -> 643.1957 | D269: =INDEX(Prop2020DistTar!$D$164:$D$165,D266) -> 109.4277
B271: Distribution volumes (actual) | C271: DemBlk1 | D271: DemBlk2
B272: =B268 -> Existing: Tariff D - Multinet South Gippsland | C272: =INDEX(Prop2020DistTar!$F$164:$F$165,C$266) -> 100 | D272: =INDEX(Prop2020DistTar!$F$164:$F$165,D$266) -> 134.54
B273: =B269 -> Proposed: Tariff D - Multinet South Gippsland | C273: =INDEX(Prop2020DistTar!$F$164:$F$165,C$266) -> 100 | D273: =INDEX(Prop2020DistTar!$F$164:$F$165,D$266) -> 134.54
B275: Distribution revenue | C275: DemBlk1 | D275: DemBlk2
B276: =B272 -> Existing: Tariff D - Multinet South Gippsland | C276: =INDEX(Prop2020DistTar!$H$164:$H$165,C266) -> 62576.64 | D276: =INDEX(Prop2020DistTar!$H$164:$H$165,D266) -> 14323.4513
B277: =B273 -> Proposed: Tariff D - Multinet South Gippsland | C277: =INDEX(Prop2020DistTar!$G$164:$G$165,C266) -> 64319.57 | D277: =INDEX(Prop2020DistTar!$G$164:$G$165,D266) -> 14722.40276
B279: Revenue | C279: Total
B280: =B276 -> Existing: Tariff D - Multinet South Gippsland | C280: =SUM(C276:D276) -> 76900.0913
B281: =B277 -> Proposed: Tariff D - Multinet South Gippsland | C281: =SUM(C277:D277) -> 79041.97276
B283: Average price movement | C283: =IF(C281=0,"",C281/C280) -> 1.027852782
B285: =IF(C283="","",IF(C283<=$C$13,"REBALANCING CONTROL COMPLIANT","REBALANCING CONTROL BREACHED")) -> REBALANCING CONTROL COMPLIANT

Sheet ARS
A1: ="Tariff Approval - "&'Model update'!B3 -> Tariff Approval - MultiNet
A3: Ancillary Reference Services (Exc GST)
B5: ='Model update'!$B$8 -> 2019 | C5: ='Model update'!$B$5 -> 2020
A6: Meter Investigation – High Account Investigation Between the hours of 8am and 4pm on a Business Day | B6: 148.7169828 | C6: =ROUND(B6*(1+'Model update'!$B$30),2) -> 151.09
A7: Meter Disconnection – Use of locks & plugs Between the hours of 8am and 4pm on a Business Day | B7: 52.0902439 | C7: =ROUND(B7*(1+'Model update'!$B$30),2) -> 52.92
A8: Meter Removal – Various Between the hours of 8am and 4pm on a Business Day | B8: 62.23676603 | C8: =ROUND(B8*(1+'Model update'!$B$30),2) -> 63.23
A9: Reconnect Between the hours of 8am and 4pm on a Business Day | B9: 43.92402891 | C9: =ROUND(B9*(1+'Model update'!$B$30),2) -> 44.62
A10: Special Meter Reads Between the hours of 8am and 4pm on a Business Day | B10: 6.675880759 | C10: =ROUND(B10*(1+'Model update'!$B$30),2) -> 6.78
A11: Installation of a second service valve in a pit and disconnect gas supply – paved (without traffic Mgt) | B11: 3320.035953 | C11: =ROUND(B11*(1+'Model update'!$B$30),2) -> 3372.92
A12: Installation of a second service valve in a pit and disconnect gas supply – paved (with traffic Mgt) | B12: 4114.15953 | C12: =ROUND(B12*(1+'Model update'!$B$30),2) -> 4179.69
A13: Installation of a second service valve in a pit and disconnect gas supply – unpaved (without traffic Mgt) | B13: 1575.793677 | C13: =ROUND(B13*(1+'Model update'!$B$30),2) -> 1600.89
A14: Installation of a second service valve in a pit and disconnect gas supply – unpaved (with traffic Mgt) | B14: 2171.38636 | C14: =ROUND(B14*(1+'Model update'!$B$30),2) -> 2205.97
A16: Note: Formula is as per AA2018-22, Part B, section 2, p9 : ART = ARTt-1 * (1+CPIt)
